DepartmentFamily,Entity,Date,ExpenseType,ExpenseArea,Supplier,TransactionNumber,Amount,VATRegistrationNo
BEIS,The Insolvency Service,01/03/2018,Accommodation,BUSINESS SERVICES DIRECTORATE                                                                       ,IRON MOUNTAIN (UK) LTD,BA0000312123,0.21,607937516
BEIS,The Insolvency Service,01/03/2018,Accommodation,BUSINESS SERVICES DIRECTORATE                                                                       ,IRON MOUNTAIN (UK) LTD,BA0000312123,"1,334.88",607937516
BEIS,The Insolvency Service,01/03/2018,Accommodation,CUSTOMER AND COMMUNICATIONS                                                                         ,IRON MOUNTAIN (UK) LTD,BA0000312123,46.42,607937516
BEIS,The Insolvency Service,01/03/2018,Accommodation,EXTERNAL AFFAIRS                                                                                    ,IRON MOUNTAIN (UK) LTD,BA0000312123,1.26,607937516
BEIS,The Insolvency Service,01/03/2018,Accommodation,EXTERNAL AFFAIRS                                                                                    ,IRON MOUNTAIN (UK) LTD,BA0000312123,119.59,607937516
BEIS,The Insolvency Service,01/03/2018,Accommodation,INFORMATION TECHNOLOGY                                                                              ,IRON MOUNTAIN (UK) LTD,BA0000312123,238.42,607937516
BEIS,The Insolvency Service,01/03/2018,Accommodation,INVESTIGATIONS & ENFORCEMENT                                                                        ,IRON MOUNTAIN (UK) LTD,BA0000312123,"2,173.73",607937516
BEIS,The Insolvency Service,01/03/2018,Accommodation,OFFICIAL RECEIVER SERVICES                                                                          ,IRON MOUNTAIN (UK) LTD,BA0000312123,"11,851.20",607937516
BEIS,The Insolvency Service,01/03/2018,Accommodation,P&C - People Relations                                                                              ,IRON MOUNTAIN (UK) LTD,BA0000312123,18.51,607937516
BEIS,The Insolvency Service,01/03/2018,Accommodation,P&C - People Relations                                                                              ,IRON MOUNTAIN (UK) LTD,BA0000312123,47.47,607937516
BEIS,The Insolvency Service,01/03/2018,Computer and IT Systems,INFORMATION TECHNOLOGY                                                                              ,ATOS IT SERVICES UK LTD,BA0000312129,"22,338.08",232327983
BEIS,The Insolvency Service,01/03/2018,Computer and IT Systems,INFORMATION TECHNOLOGY                                                                              ,BANG COMMUNICATIONS                                         ,BA0000312138,"14,040.00",569978254
BEIS,The Insolvency Service,01/03/2018,Computer and IT Systems,INFORMATION TECHNOLOGY                                                                              ,NINE TELECOM,BA0000312131,230.52,886132113
BEIS,The Insolvency Service,01/03/2018,Computer and IT Systems,INFORMATION TECHNOLOGY                                                                              ,SMARTCOMMS SC LTD                                           ,BA0000312140,"102,350.50",
BEIS,The Insolvency Service,01/03/2018,Computer and IT Systems,INFORMATION TECHNOLOGY                                                                              ,THALES UK Ltd. (L&J),BA0000312142,"76,559.04",198955680
BEIS,The Insolvency Service,01/03/2018,Insolvency Case Related Costs,OFFICIAL RECEIVER SERVICES                                                                          ,INSOLVENCY SERVICE,BA0000312122,50.00,
BEIS,The Insolvency Service,01/03/2018,Postage,OFFICIAL RECEIVER SERVICES                                                                          ,NEOPOST LTD - FRANKING TOP UPS,BA0000312120,500.00,
BEIS,The Insolvency Service,01/03/2018,Postage,OFFICIAL RECEIVER SERVICES                                                                          ,NEOPOST LTD - FRANKING TOP UPS,BA0000312120,500.00,
BEIS,The Insolvency Service,01/03/2018,Postage,OFFICIAL RECEIVER SERVICES                                                                          ,NEOPOST LTD - FRANKING TOP UPS,BA0000312120,500.00,
BEIS,The Insolvency Service,01/03/2018,Postage,OFFICIAL RECEIVER SERVICES                                                                          ,NEOPOST LTD - FRANKING TOP UPS,BA0000312120,500.00,
BEIS,The Insolvency Service,01/03/2018,Postage,OFFICIAL RECEIVER SERVICES                                                                          ,NEOPOST LTD - FRANKING TOP UPS,BA0000312120,500.00,
BEIS,The Insolvency Service,01/03/2018,Postage,OFFICIAL RECEIVER SERVICES                                                                          ,NEOPOST LTD - FRANKING TOP UPS,BA0000312120,600.00,
BEIS,The Insolvency Service,01/03/2018,Postage,OFFICIAL RECEIVER SERVICES                                                                          ,NEOPOST LTD - FRANKING TOP UPS,BA0000312120,"1,000.00",
BEIS,The Insolvency Service,01/03/2018,Postage,OFFICIAL RECEIVER SERVICES                                                                          ,ROYAL MAIL GROUP LTD - RESPONSE SERVICES)                   ,BA0000312121,95.70,243170002
BEIS,The Insolvency Service,01/03/2018,Telecoms,OFFICIAL RECEIVER SERVICES                                                                          ,BT TELEPHONE PAYMENT CENTRE,BA0000312128,136.00,245719348
BEIS,The Insolvency Service,01/03/2018,Telecoms,OFFICIAL RECEIVER SERVICES                                                                          ,BT TELEPHONE PAYMENT CENTRE,BA0000312125,89.64,245719348
BEIS,The Insolvency Service,01/03/2018,Training Costs,INFORMATION TECHNOLOGY                                                                              ,QA LIMITED,BA0000312141,"4,550.00",
BEIS,The Insolvency Service,02/03/2018,Agency Workers,FINANCE AND COMMERCIAL                                                                              ,KPMG LLP                                                    ,BA0000312160,"149,028.12",791788859
BEIS,The Insolvency Service,02/03/2018,Employee Related Costs,P&C - People Relations                                                                              ,RIGHT CORECARE Ltd                                          ,BA0000312159,522.80,
BEIS,The Insolvency Service,02/03/2018,Insolvency Case Related Costs,OFFICIAL RECEIVER SERVICES                                                                          ,HPI LTD,BA0000312179,8.72,942407139
BEIS,The Insolvency Service,02/03/2018,Insolvency Case Related Costs,OFFICIAL RECEIVER SERVICES                                                                          ,ROYAL MAIL (REDIRECTION)                                    ,BA0000312165,"17,136.00",
BEIS,The Insolvency Service,02/03/2018,Insolvency Case Related Costs,OFFICIAL RECEIVER SERVICES                                                                          ,THE STATIONERY OFFICE LTD,BA0000312176,223.74,662774703
BEIS,The Insolvency Service,02/03/2018,Insolvency Case Related Costs,OFFICIAL RECEIVER SERVICES                                                                          ,THE STATIONERY OFFICE LTD,BA0000312177,74.58,662774703
BEIS,The Insolvency Service,02/03/2018,Insolvency Case Related Costs,OFFICIAL RECEIVER SERVICES                                                                          ,THE STATIONERY OFFICE LTD,BA0000312178,74.58,662774703
BEIS,The Insolvency Service,02/03/2018,Insolvency Case Related Costs,OFFICIAL RECEIVER SERVICES                                                                          ,THE SURVEILLANCE GROUP LTD                                  ,BA0000312158,"1,611.06",918530324
BEIS,The Insolvency Service,02/03/2018,Investigation and Enforcement Costs,INVESTIGATIONS & ENFORCEMENT                                                                        ,K INTERNATIONAL PLC,BA0000312164,"1,156.13",600413800
BEIS,The Insolvency Service,02/03/2018,Postage,FINANCE AND COMMERCIAL                                                                              ,TNT UK LTD,BA0000312163,104.97,354715057
BEIS,The Insolvency Service,02/03/2018,Postage,FINANCE AND COMMERCIAL                                                                              ,TNT UK LTD,BA0000312168,71.96,354715057
BEIS,The Insolvency Service,02/03/2018,Postage,OFFICIAL RECEIVER SERVICES                                                                          ,HPI LTD,BA0000312180,7.25,942407139
BEIS,The Insolvency Service,02/03/2018,Training Costs,CRIMINAL ENFORCEMENT                                                                                ,BOND SOLON TRAINING LIMITED (LONDON)                        ,BA0000312173,"2,115.00",899372551
BEIS,The Insolvency Service,02/03/2018,Training Costs,CRIMINAL ENFORCEMENT                                                                                ,BOND SOLON TRAINING LIMITED (LONDON)                        ,BA0000312172,360.00,899372551
BEIS,The Insolvency Service,02/03/2018,Training Costs,CRIMINAL ENFORCEMENT                                                                                ,BOND SOLON TRAINING LIMITED (LONDON)                        ,BA0000312171,"2,140.00",899372551
BEIS,The Insolvency Service,02/03/2018,Training Costs,CRIMINAL ENFORCEMENT                                                                                ,BOND SOLON TRAINING LIMITED (LONDON)                        ,BA0000312169,"2,140.00",899372551
BEIS,The Insolvency Service,02/03/2018,Training Costs,CRIMINAL ENFORCEMENT                                                                                ,BOND SOLON TRAINING LIMITED (LONDON)                        ,BA0000312157,"2,140.00",899372551
BEIS,The Insolvency Service,02/03/2018,Training Costs,INVESTIGATIONS & ENFORCEMENT                                                                        ,BOND SOLON TRAINING LIMITED (LONDON)                        ,BA0000312170,535.00,899372551
BEIS,The Insolvency Service,05/03/2018,Agency Workers,FINANCE AND COMMERCIAL,BROOK STREET (UK) LTD,BA0000312162,"24,898.44",
BEIS,The Insolvency Service,05/03/2018,Postage,FINANCE AND COMMERCIAL                                                                              ,ROYAL MAIL GROUP LTD - RESPONSE SERVICES)                   ,BA0000312191,39.45,243170002
BEIS,The Insolvency Service,05/03/2018,Travel and Subsistence,INFORMATION TECHNOLOGY                                                                              ,Staff Payment,BA0000312187,2.40,
BEIS,The Insolvency Service,05/03/2018,Travel and Subsistence,INFORMATION TECHNOLOGY                                                                              ,Staff Payment,BA0000312187,4.30,
BEIS,The Insolvency Service,05/03/2018,Travel and Subsistence,INFORMATION TECHNOLOGY                                                                              ,Staff Payment,BA0000312187,4.95,
BEIS,The Insolvency Service,05/03/2018,Travel and Subsistence,INFORMATION TECHNOLOGY                                                                              ,Staff Payment,BA0000312187,5.00,
BEIS,The Insolvency Service,05/03/2018,Travel and Subsistence,INFORMATION TECHNOLOGY                                                                              ,Staff Payment,BA0000312187,9.25,
BEIS,The Insolvency Service,05/03/2018,Travel and Subsistence,INFORMATION TECHNOLOGY                                                                              ,Staff Payment,BA0000312187,15.00,
BEIS,The Insolvency Service,05/03/2018,Travel and Subsistence,INFORMATION TECHNOLOGY                                                                              ,Staff Payment,BA0000312187,2.25,
BEIS,The Insolvency Service,05/03/2018,Travel and Subsistence,INFORMATION TECHNOLOGY                                                                              ,Staff Payment,BA0000312187,5.00,
BEIS,The Insolvency Service,05/03/2018,Travel and Subsistence,INFORMATION TECHNOLOGY                                                                              ,Staff Payment,BA0000312187,7.20,
BEIS,The Insolvency Service,05/03/2018,Travel and Subsistence,INFORMATION TECHNOLOGY                                                                              ,Staff Payment,BA0000312187,12.00,
BEIS,The Insolvency Service,05/03/2018,Travel and Subsistence,INFORMATION TECHNOLOGY                                                                              ,Staff Payment,BA0000312187,14.40,
BEIS,The Insolvency Service,05/03/2018,Travel and Subsistence,INFORMATION TECHNOLOGY                                                                              ,Staff Payment,BA0000312187,14.88,
BEIS,The Insolvency Service,05/03/2018,Travel and Subsistence,INFORMATION TECHNOLOGY                                                                              ,Staff Payment,BA0000312187,15.00,
BEIS,The Insolvency Service,05/03/2018,Travel and Subsistence,INFORMATION TECHNOLOGY                                                                              ,Staff Payment,BA0000312187,24.00,
BEIS,The Insolvency Service,06/03/2018,Agency Workers,CUSTOMER AND COMMUNICATIONS                                                                         ,CAPITA BUSINESS SERVICES LTD,BA0000312196,"3,002.64",618184140
BEIS,The Insolvency Service,06/03/2018,Agency Workers,FINANCE AND COMMERCIAL,CAPITA BUSINESS SERVICES LIMITED                            ,BA0000312204,"1,292.65",618184140
BEIS,The Insolvency Service,06/03/2018,Agency Workers,FINANCE AND COMMERCIAL,CAPITA BUSINESS SERVICES LTD,BA0000312198,"4,025.76",618184140
BEIS,The Insolvency Service,06/03/2018,Agency Workers,FINANCE AND COMMERCIAL                                                                              ,CAPITA BUSINESS SERVICES LTD,BA0000312199,"2,145.10",618184140
BEIS,The Insolvency Service,06/03/2018,Agency Workers,FINANCE AND COMMERCIAL                                                                              ,CAPITA BUSINESS SERVICES LTD,BA0000312200,604.55,618184140
BEIS,The Insolvency Service,06/03/2018,Agency Workers,FINANCE AND COMMERCIAL                                                                              ,CAPITA BUSINESS SERVICES LTD,BA0000312206,"2,145.10",618184140
BEIS,The Insolvency Service,06/03/2018,Agency Workers,INFORMATION TECHNOLOGY                                                                              ,CAPITA BUSINESS SERVICES LTD,BA0000312195,"2,743.45",618184140
BEIS,The Insolvency Service,06/03/2018,Agency Workers,INFORMATION TECHNOLOGY                                                                              ,CAPITA BUSINESS SERVICES LTD,BA0000312197,"2,510.75",618184140
BEIS,The Insolvency Service,06/03/2018,Agency Workers,INFORMATION TECHNOLOGY                                                                              ,CAPITA BUSINESS SERVICES LTD,BA0000312201,"2,500.70",618184140
BEIS,The Insolvency Service,06/03/2018,Agency Workers,INFORMATION TECHNOLOGY                                                                              ,CAPITA BUSINESS SERVICES LTD,BA0000312202,"2,230.10",618184140
BEIS,The Insolvency Service,06/03/2018,Agency Workers,INFORMATION TECHNOLOGY                                                                              ,CAPITA BUSINESS SERVICES LTD,BA0000312203,"2,500.70",618184140
BEIS,The Insolvency Service,06/03/2018,Agency Workers,INFORMATION TECHNOLOGY                                                                              ,CAPITA BUSINESS SERVICES LTD,BA0000312205,"2,230.10",618184140
BEIS,The Insolvency Service,06/03/2018,Agency Workers,INFORMATION TECHNOLOGY                                                                              ,CAPITA BUSINESS SERVICES LTD,BA0000312207,"1,784.08",618184140
BEIS,The Insolvency Service,06/03/2018,Agency Workers,PROJECTS                                                                                            ,CAPITA BUSINESS SERVICES LTD,BA0000312194,"2,208.45",618184140
BEIS,The Insolvency Service,06/03/2018,Employee Related Costs,FINANCE AND COMMERCIAL,Staff Payment,BA0000312210,299.00,
BEIS,The Insolvency Service,06/03/2018,Employee Related Costs,OFFICIAL RECEIVER SERVICES                                                                          ,Staff Payment,BA0000312209,236.00,
BEIS,The Insolvency Service,06/03/2018,Employee Related Costs,OFFICIAL RECEIVER SERVICES                                                                          ,Staff Payment,BA0000312209,11.50,
BEIS,The Insolvency Service,06/03/2018,Office Supplies and Services,CRIMINAL ENFORCEMENT                                                                                ,Staff Payment,BA0000312214,2.08,
BEIS,The Insolvency Service,06/03/2018,Office Supplies and Services,CRIMINAL ENFORCEMENT                                                                                ,Staff Payment,BA0000312214,2.70,
BEIS,The Insolvency Service,06/03/2018,Office Supplies and Services,CRIMINAL ENFORCEMENT                                                                                ,Staff Payment,BA0000312214,1.75,
BEIS,The Insolvency Service,06/03/2018,Office Supplies and Services,CRIMINAL ENFORCEMENT                                                                                ,Staff Payment,BA0000312214,3.50,
BEIS,The Insolvency Service,06/03/2018,Office Supplies and Services,CRIMINAL ENFORCEMENT                                                                                ,Staff Payment,BA0000312214,7.65,
BEIS,The Insolvency Service,06/03/2018,Office Supplies and Services,CRIMINAL ENFORCEMENT                                                                                ,Staff Payment,BA0000312214,7.10,
BEIS,The Insolvency Service,06/03/2018,Office Supplies and Services,CRIMINAL ENFORCEMENT                                                                                ,Staff Payment,BA0000312210,3.00,
BEIS,The Insolvency Service,06/03/2018,Office Supplies and Services,CRIMINAL ENFORCEMENT                                                                                ,Staff Payment,BA0000312210,3.25,
BEIS,The Insolvency Service,06/03/2018,Office Supplies and Services,CRIMINAL ENFORCEMENT                                                                                ,Staff Payment,BA0000312214,0.98,
BEIS,The Insolvency Service,06/03/2018,Office Supplies and Services,INFORMATION TECHNOLOGY                                                                              ,Staff Payment,BA0000312214,3.95,
BEIS,The Insolvency Service,06/03/2018,Office Supplies and Services,INVESTIGATIONS & ENFORCEMENT                                                                        ,Staff Payment,BA0000312209,2.75,
BEIS,The Insolvency Service,06/03/2018,Office Supplies and Services,INVESTIGATIONS & ENFORCEMENT                                                                        ,Staff Payment,BA0000312209,7.25,
BEIS,The Insolvency Service,06/03/2018,Office Supplies and Services,OFFICIAL RECEIVER SERVICES                                                                          ,Staff Payment,BA0000312209,8.99,
BEIS,The Insolvency Service,06/03/2018,Office Supplies and Services,OFFICIAL RECEIVER SERVICES                                                                          ,Staff Payment,BA0000312210,1.10,
BEIS,The Insolvency Service,06/03/2018,Postage,INFORMATION TECHNOLOGY                                                                              ,DX NETWORK SERVICES LTD,BA0000312222,188.23,849741385
BEIS,The Insolvency Service,06/03/2018,Postage,OFFICIAL RECEIVER SERVICES                                                                          ,DX NETWORK SERVICES LTD,BA0000312222,108.28,849741385
BEIS,The Insolvency Service,06/03/2018,Postage,OFFICIAL RECEIVER SERVICES                                                                          ,DX NETWORK SERVICES LTD,BA0000312222,126.49,849741385
BEIS,The Insolvency Service,06/03/2018,Postage,OFFICIAL RECEIVER SERVICES                                                                          ,DX NETWORK SERVICES LTD,BA0000312222,152.60,849741385
BEIS,The Insolvency Service,06/03/2018,Postage,OFFICIAL RECEIVER SERVICES                                                                          ,DX NETWORK SERVICES LTD,BA0000312222,172.71,849741385
BEIS,The Insolvency Service,06/03/2018,Postage,OFFICIAL RECEIVER SERVICES                                                                          ,DX NETWORK SERVICES LTD,BA0000312222,180.81,849741385
BEIS,The Insolvency Service,06/03/2018,Postage,OFFICIAL RECEIVER SERVICES                                                                          ,DX NETWORK SERVICES LTD,BA0000312222,185.10,849741385
BEIS,The Insolvency Service,06/03/2018,Postage,OFFICIAL RECEIVER SERVICES                                                                          ,DX NETWORK SERVICES LTD,BA0000312222,220.34,849741385
BEIS,The Insolvency Service,06/03/2018,Postage,OFFICIAL RECEIVER SERVICES                                                                          ,DX NETWORK SERVICES LTD,BA0000312222,221.69,849741385
BEIS,The Insolvency Service,06/03/2018,Postage,OFFICIAL RECEIVER SERVICES                                                                          ,DX NETWORK SERVICES LTD,BA0000312222,244.21,849741385
BEIS,The Insolvency Service,06/03/2018,Postage,OFFICIAL RECEIVER SERVICES                                                                          ,DX NETWORK SERVICES LTD,BA0000312222,282.14,849741385
BEIS,The Insolvency Service,06/03/2018,Postage,OFFICIAL RECEIVER SERVICES                                                                          ,DX NETWORK SERVICES LTD,BA0000312222,366.89,849741385
BEIS,The Insolvency Service,06/03/2018,Postage,OFFICIAL RECEIVER SERVICES                                                                          ,DX NETWORK SERVICES LTD,BA0000312222,404.37,849741385
BEIS,The Insolvency Service,06/03/2018,Postage,OFFICIAL RECEIVER SERVICES                                                                          ,DX NETWORK SERVICES LTD,BA0000312222,409.26,849741385
BEIS,The Insolvency Service,06/03/2018,Postage,OFFICIAL RECEIVER SERVICES                                                                          ,DX NETWORK SERVICES LTD,BA0000312222,440.41,849741385
BEIS,The Insolvency Service,06/03/2018,Postage,OFFICIAL RECEIVER SERVICES                                                                          ,DX NETWORK SERVICES LTD,BA0000312222,589.17,849741385
BEIS,The Insolvency Service,06/03/2018,Postage,OFFICIAL RECEIVER SERVICES                                                                          ,DX NETWORK SERVICES LTD,BA0000312222,627.85,849741385
BEIS,The Insolvency Service,06/03/2018,Telecoms,INVESTIGATIONS & ENFORCEMENT                                                                        ,Staff Payment,BA0000312209,32.49,
BEIS,The Insolvency Service,06/03/2018,Telecoms,INVESTIGATIONS & ENFORCEMENT                                                                        ,Staff Payment,BA0000312209,44.32,
BEIS,The Insolvency Service,06/03/2018,Travel and Subsistence,CRIMINAL ENFORCEMENT                                                                                ,Staff Payment,BA0000312214,4.50,
BEIS,The Insolvency Service,06/03/2018,Travel and Subsistence,CRIMINAL ENFORCEMENT                                                                                ,Staff Payment,BA0000312214,4.80,
BEIS,The Insolvency Service,06/03/2018,Travel and Subsistence,CRIMINAL ENFORCEMENT                                                                                ,Staff Payment,BA0000312214,5.00,
BEIS,The Insolvency Service,06/03/2018,Travel and Subsistence,CRIMINAL ENFORCEMENT                                                                                ,Staff Payment,BA0000312214,20.70,
BEIS,The Insolvency Service,06/03/2018,Travel and Subsistence,CRIMINAL ENFORCEMENT                                                                                ,Staff Payment,BA0000312214,33.30,
BEIS,The Insolvency Service,06/03/2018,Travel and Subsistence,CRIMINAL ENFORCEMENT                                                                                ,Staff Payment,BA0000312214,35.10,
BEIS,The Insolvency Service,06/03/2018,Travel and Subsistence,CRIMINAL ENFORCEMENT                                                                                ,Staff Payment,BA0000312214,45.90,
BEIS,The Insolvency Service,06/03/2018,Travel and Subsistence,CRIMINAL ENFORCEMENT                                                                                ,Staff Payment,BA0000312214,70.20,
BEIS,The Insolvency Service,06/03/2018,Travel and Subsistence,CRIMINAL ENFORCEMENT                                                                                ,Staff Payment,BA0000312214,75.60,
BEIS,The Insolvency Service,06/03/2018,Travel and Subsistence,CRIMINAL ENFORCEMENT                                                                                ,Staff Payment,BA0000312214,2.00,
BEIS,The Insolvency Service,06/03/2018,Travel and Subsistence,CRIMINAL ENFORCEMENT                                                                                ,Staff Payment,BA0000312214,2.03,
BEIS,The Insolvency Service,06/03/2018,Travel and Subsistence,CRIMINAL ENFORCEMENT                                                                                ,Staff Payment,BA0000312214,2.25,
BEIS,The Insolvency Service,06/03/2018,Travel and Subsistence,CRIMINAL ENFORCEMENT                                                                                ,Staff Payment,BA0000312214,3.75,
BEIS,The Insolvency Service,06/03/2018,Travel and Subsistence,CRIMINAL ENFORCEMENT                                                                                ,Staff Payment,BA0000312214,5.00,
BEIS,The Insolvency Service,06/03/2018,Travel and Subsistence,CRIMINAL ENFORCEMENT                                                                                ,Staff Payment,BA0000312214,12.70,
BEIS,The Insolvency Service,06/03/2018,Travel and Subsistence,CRIMINAL ENFORCEMENT                                                                                ,Staff Payment,BA0000312214,80.10,
BEIS,The Insolvency Service,06/03/2018,Travel and Subsistence,CRIMINAL ENFORCEMENT                                                                                ,Staff Payment,BA0000312214,96.30,
BEIS,The Insolvency Service,06/03/2018,Travel and Subsistence,CRIMINAL ENFORCEMENT                                                                                ,Staff Payment,BA0000312214,5.00,
BEIS,The Insolvency Service,06/03/2018,Travel and Subsistence,CRIMINAL ENFORCEMENT                                                                                ,Staff Payment,BA0000312214,14.50,
BEIS,The Insolvency Service,06/03/2018,Travel and Subsistence,CRIMINAL ENFORCEMENT                                                                                ,Staff Payment,BA0000312214,25.47,
BEIS,The Insolvency Service,06/03/2018,Travel and Subsistence,CRIMINAL ENFORCEMENT                                                                                ,Staff Payment,BA0000312214,73.13,
BEIS,The Insolvency Service,06/03/2018,Travel and Subsistence,CRIMINAL ENFORCEMENT                                                                                ,Staff Payment,BA0000312209,4.80,
BEIS,The Insolvency Service,06/03/2018,Travel and Subsistence,CRIMINAL ENFORCEMENT                                                                                ,Staff Payment,BA0000312209,12.00,
BEIS,The Insolvency Service,06/03/2018,Travel and Subsistence,CRIMINAL ENFORCEMENT                                                                                ,Staff Payment,BA0000312214,4.95,
BEIS,The Insolvency Service,06/03/2018,Travel and Subsistence,CRIMINAL ENFORCEMENT                                                                                ,Staff Payment,BA0000312214,5.50,
BEIS,The Insolvency Service,06/03/2018,Travel and Subsistence,CRIMINAL ENFORCEMENT                                                                                ,Staff Payment,BA0000312214,6.80,
BEIS,The Insolvency Service,06/03/2018,Travel and Subsistence,CRIMINAL ENFORCEMENT                                                                                ,Staff Payment,BA0000312214,28.80,
BEIS,The Insolvency Service,06/03/2018,Travel and Subsistence,CRIMINAL ENFORCEMENT                                                                                ,Staff Payment,BA0000312210,3.70,
BEIS,The Insolvency Service,06/03/2018,Travel and Subsistence,CRIMINAL ENFORCEMENT                                                                                ,Staff Payment,BA0000312210,4.79,
BEIS,The Insolvency Service,06/03/2018,Travel and Subsistence,CRIMINAL ENFORCEMENT                                                                                ,Staff Payment,BA0000312210,5.00,
BEIS,The Insolvency Service,06/03/2018,Travel and Subsistence,CRIMINAL ENFORCEMENT                                                                                ,Staff Payment,BA0000312210,8.00,
BEIS,The Insolvency Service,06/03/2018,Travel and Subsistence,CRIMINAL ENFORCEMENT                                                                                ,Staff Payment,BA0000312210,8.20,
BEIS,The Insolvency Service,06/03/2018,Travel and Subsistence,CRIMINAL ENFORCEMENT                                                                                ,Staff Payment,BA0000312210,108.90,
BEIS,The Insolvency Service,06/03/2018,Travel and Subsistence,CRIMINAL ENFORCEMENT                                                                                ,Staff Payment,BA0000312209,3.50,
BEIS,The Insolvency Service,06/03/2018,Travel and Subsistence,CRIMINAL ENFORCEMENT                                                                                ,Staff Payment,BA0000312209,5.00,
BEIS,The Insolvency Service,06/03/2018,Travel and Subsistence,CRIMINAL ENFORCEMENT                                                                                ,Staff Payment,BA0000312209,11.25,
BEIS,The Insolvency Service,06/03/2018,Travel and Subsistence,CRIMINAL ENFORCEMENT                                                                                ,Staff Payment,BA0000312209,25.20,
BEIS,The Insolvency Service,06/03/2018,Travel and Subsistence,CRIMINAL ENFORCEMENT                                                                                ,Staff Payment,BA0000312209,35.55,
BEIS,The Insolvency Service,06/03/2018,Travel and Subsistence,CRIMINAL ENFORCEMENT                                                                                ,Staff Payment,BA0000312210,2.95,
BEIS,The Insolvency Service,06/03/2018,Travel and Subsistence,CRIMINAL ENFORCEMENT                                                                                ,Staff Payment,BA0000312210,4.30,
BEIS,The Insolvency Service,06/03/2018,Travel and Subsistence,CRIMINAL ENFORCEMENT                                                                                ,Staff Payment,BA0000312210,4.80,
BEIS,The Insolvency Service,06/03/2018,Travel and Subsistence,CRIMINAL ENFORCEMENT                                                                                ,Staff Payment,BA0000312210,81.90,
BEIS,The Insolvency Service,06/03/2018,Travel and Subsistence,CRIMINAL ENFORCEMENT                                                                                ,Staff Payment,BA0000312214,4.09,
BEIS,The Insolvency Service,06/03/2018,Travel and Subsistence,CRIMINAL ENFORCEMENT                                                                                ,Staff Payment,BA0000312214,4.20,
BEIS,The Insolvency Service,06/03/2018,Travel and Subsistence,CRIMINAL ENFORCEMENT                                                                                ,Staff Payment,BA0000312214,4.50,
BEIS,The Insolvency Service,06/03/2018,Travel and Subsistence,CRIMINAL ENFORCEMENT                                                                                ,Staff Payment,BA0000312214,4.95,
BEIS,The Insolvency Service,06/03/2018,Travel and Subsistence,CRIMINAL ENFORCEMENT                                                                                ,Staff Payment,BA0000312214,4.99,
BEIS,The Insolvency Service,06/03/2018,Travel and Subsistence,CRIMINAL ENFORCEMENT                                                                                ,Staff Payment,BA0000312214,6.80,
BEIS,The Insolvency Service,06/03/2018,Travel and Subsistence,CRIMINAL ENFORCEMENT                                                                                ,Staff Payment,BA0000312214,49.05,
BEIS,The Insolvency Service,06/03/2018,Travel and Subsistence,CRIMINAL ENFORCEMENT                                                                                ,Staff Payment,BA0000312214,64.35,
BEIS,The Insolvency Service,06/03/2018,Travel and Subsistence,CRIMINAL ENFORCEMENT                                                                                ,Staff Payment,BA0000312214,5.00,
BEIS,The Insolvency Service,06/03/2018,Travel and Subsistence,CRIMINAL ENFORCEMENT                                                                                ,Staff Payment,BA0000312214,4.10,
BEIS,The Insolvency Service,06/03/2018,Travel and Subsistence,CRIMINAL ENFORCEMENT                                                                                ,Staff Payment,BA0000312214,5.00,
BEIS,The Insolvency Service,06/03/2018,Travel and Subsistence,CRIMINAL ENFORCEMENT                                                                                ,Staff Payment,BA0000312214,6.00,
BEIS,The Insolvency Service,06/03/2018,Travel and Subsistence,CRIMINAL ENFORCEMENT                                                                                ,Staff Payment,BA0000312214,6.10,
BEIS,The Insolvency Service,06/03/2018,Travel and Subsistence,CRIMINAL ENFORCEMENT                                                                                ,Staff Payment,BA0000312214,7.00,
BEIS,The Insolvency Service,06/03/2018,Travel and Subsistence,CRIMINAL ENFORCEMENT                                                                                ,Staff Payment,BA0000312214,15.00,
BEIS,The Insolvency Service,06/03/2018,Travel and Subsistence,CRIMINAL ENFORCEMENT                                                                                ,Staff Payment,BA0000312214,35.10,
BEIS,The Insolvency Service,06/03/2018,Travel and Subsistence,CUSTOMER AND COMMUNICATIONS                                                                         ,Staff Payment,BA0000312214,13.05,
BEIS,The Insolvency Service,06/03/2018,Travel and Subsistence,CUSTOMER AND COMMUNICATIONS                                                                         ,Staff Payment,BA0000312210,5.00,
BEIS,The Insolvency Service,06/03/2018,Travel and Subsistence,CUSTOMER AND COMMUNICATIONS                                                                         ,Staff Payment,BA0000312210,6.50,
BEIS,The Insolvency Service,06/03/2018,Travel and Subsistence,CUSTOMER AND COMMUNICATIONS                                                                         ,Staff Payment,BA0000312210,10.00,
BEIS,The Insolvency Service,06/03/2018,Travel and Subsistence,EXTERNAL AFFAIRS                                                                                    ,Staff Payment,BA0000312210,4.05,
BEIS,The Insolvency Service,06/03/2018,Travel and Subsistence,EXTERNAL AFFAIRS                                                                                    ,Staff Payment,BA0000312210,4.25,
BEIS,The Insolvency Service,06/03/2018,Travel and Subsistence,EXTERNAL AFFAIRS                                                                                    ,Staff Payment,BA0000312210,4.49,
BEIS,The Insolvency Service,06/03/2018,Travel and Subsistence,EXTERNAL AFFAIRS                                                                                    ,Staff Payment,BA0000312210,4.99,
BEIS,The Insolvency Service,06/03/2018,Travel and Subsistence,EXTERNAL AFFAIRS                                                                                    ,Staff Payment,BA0000312210,5.00,
BEIS,The Insolvency Service,06/03/2018,Travel and Subsistence,EXTERNAL AFFAIRS                                                                                    ,Staff Payment,BA0000312210,5.00,
BEIS,The Insolvency Service,06/03/2018,Travel and Subsistence,EXTERNAL AFFAIRS                                                                                    ,Staff Payment,BA0000312210,5.50,
BEIS,The Insolvency Service,06/03/2018,Travel and Subsistence,EXTERNAL AFFAIRS                                                                                    ,Staff Payment,BA0000312210,11.25,
BEIS,The Insolvency Service,06/03/2018,Travel and Subsistence,EXTERNAL AFFAIRS                                                                                    ,Staff Payment,BA0000312210,15.00,
BEIS,The Insolvency Service,06/03/2018,Travel and Subsistence,FINANCE AND COMMERCIAL                                                                              ,Staff Payment,BA0000312214,3.90,
BEIS,The Insolvency Service,06/03/2018,Travel and Subsistence,FINANCE AND COMMERCIAL                                                                              ,Staff Payment,BA0000312214,5.00,
BEIS,The Insolvency Service,06/03/2018,Travel and Subsistence,FINANCE AND COMMERCIAL                                                                              ,Staff Payment,BA0000312214,11.76,
BEIS,The Insolvency Service,06/03/2018,Travel and Subsistence,FINANCE AND COMMERCIAL                                                                              ,Staff Payment,BA0000312214,1.50,
BEIS,The Insolvency Service,06/03/2018,Travel and Subsistence,FINANCE AND COMMERCIAL                                                                              ,Staff Payment,BA0000312214,3.50,
BEIS,The Insolvency Service,06/03/2018,Travel and Subsistence,FINANCE AND COMMERCIAL                                                                              ,Staff Payment,BA0000312214,4.19,
BEIS,The Insolvency Service,06/03/2018,Travel and Subsistence,FINANCE AND COMMERCIAL                                                                              ,Staff Payment,BA0000312214,5.00,
BEIS,The Insolvency Service,06/03/2018,Travel and Subsistence,FINANCE AND COMMERCIAL                                                                              ,Staff Payment,BA0000312214,11.09,
BEIS,The Insolvency Service,06/03/2018,Travel and Subsistence,FINANCE AND COMMERCIAL                                                                              ,Staff Payment,BA0000312214,1.00,
BEIS,The Insolvency Service,06/03/2018,Travel and Subsistence,FINANCE AND COMMERCIAL                                                                              ,Staff Payment,BA0000312214,4.99,
BEIS,The Insolvency Service,06/03/2018,Travel and Subsistence,FINANCE AND COMMERCIAL                                                                              ,Staff Payment,BA0000312214,5.00,
BEIS,The Insolvency Service,06/03/2018,Travel and Subsistence,FINANCE AND COMMERCIAL,Staff Payment,BA0000312214,3.00,
BEIS,The Insolvency Service,06/03/2018,Travel and Subsistence,FINANCE AND COMMERCIAL,Staff Payment,BA0000312214,3.00,
BEIS,The Insolvency Service,06/03/2018,Travel and Subsistence,FINANCE AND COMMERCIAL,Staff Payment,BA0000312214,3.00,
BEIS,The Insolvency Service,06/03/2018,Travel and Subsistence,FINANCE AND COMMERCIAL,Staff Payment,BA0000312214,3.60,
BEIS,The Insolvency Service,06/03/2018,Travel and Subsistence,FINANCE AND COMMERCIAL,Staff Payment,BA0000312214,3.60,
BEIS,The Insolvency Service,06/03/2018,Travel and Subsistence,FINANCE AND COMMERCIAL,Staff Payment,BA0000312214,7.20,
BEIS,The Insolvency Service,06/03/2018,Travel and Subsistence,FINANCE AND COMMERCIAL                                                                              ,Staff Payment,BA0000312214,1.00,
BEIS,The Insolvency Service,06/03/2018,Travel and Subsistence,FINANCE AND COMMERCIAL                                                                              ,Staff Payment,BA0000312214,1.50,
BEIS,The Insolvency Service,06/03/2018,Travel and Subsistence,FINANCE AND COMMERCIAL                                                                              ,Staff Payment,BA0000312214,4.05,
BEIS,The Insolvency Service,06/03/2018,Travel and Subsistence,FINANCE AND COMMERCIAL                                                                              ,Staff Payment,BA0000312214,5.00,
BEIS,The Insolvency Service,06/03/2018,Travel and Subsistence,FINANCE AND COMMERCIAL                                                                              ,Staff Payment,BA0000312214,10.40,
BEIS,The Insolvency Service,06/03/2018,Travel and Subsistence,FINANCE AND COMMERCIAL,Staff Payment,BA0000312214,5.00,
BEIS,The Insolvency Service,06/03/2018,Travel and Subsistence,FINANCE AND COMMERCIAL                                                                              ,Staff Payment,BA0000312214,4.80,
BEIS,The Insolvency Service,06/03/2018,Travel and Subsistence,FINANCE AND COMMERCIAL                                                                              ,Staff Payment,BA0000312214,5.00,
BEIS,The Insolvency Service,06/03/2018,Travel and Subsistence,FINANCE AND COMMERCIAL                                                                              ,Staff Payment,BA0000312214,2.40,
BEIS,The Insolvency Service,06/03/2018,Travel and Subsistence,FINANCE AND COMMERCIAL                                                                              ,Staff Payment,BA0000312214,5.00,
BEIS,The Insolvency Service,06/03/2018,Travel and Subsistence,FINANCE AND COMMERCIAL                                                                              ,Staff Payment,BA0000312214,9.25,
BEIS,The Insolvency Service,06/03/2018,Travel and Subsistence,FINANCE AND COMMERCIAL                                                                              ,Staff Payment,BA0000312214,2.40,
BEIS,The Insolvency Service,06/03/2018,Travel and Subsistence,FINANCE AND COMMERCIAL                                                                              ,Staff Payment,BA0000312214,5.00,
BEIS,The Insolvency Service,06/03/2018,Travel and Subsistence,FINANCE AND COMMERCIAL                                                                              ,Staff Payment,BA0000312214,13.45,
BEIS,The Insolvency Service,06/03/2018,Travel and Subsistence,FINANCE AND COMMERCIAL                                                                              ,Staff Payment,BA0000312214,5.00,
BEIS,The Insolvency Service,06/03/2018,Travel and Subsistence,FINANCE AND COMMERCIAL                                                                              ,Staff Payment,BA0000312214,4.80,
BEIS,The Insolvency Service,06/03/2018,Travel and Subsistence,FINANCE AND COMMERCIAL                                                                              ,Staff Payment,BA0000312214,5.00,
BEIS,The Insolvency Service,06/03/2018,Travel and Subsistence,FINANCE AND COMMERCIAL                                                                              ,Staff Payment,BA0000312214,1.00,
BEIS,The Insolvency Service,06/03/2018,Travel and Subsistence,FINANCE AND COMMERCIAL                                                                              ,Staff Payment,BA0000312214,1.50,
BEIS,The Insolvency Service,06/03/2018,Travel and Subsistence,FINANCE AND COMMERCIAL                                                                              ,Staff Payment,BA0000312214,3.00,
BEIS,The Insolvency Service,06/03/2018,Travel and Subsistence,FINANCE AND COMMERCIAL                                                                              ,Staff Payment,BA0000312214,5.00,
BEIS,The Insolvency Service,06/03/2018,Travel and Subsistence,FINANCE AND COMMERCIAL                                                                              ,Staff Payment,BA0000312214,7.75,
BEIS,The Insolvency Service,06/03/2018,Travel and Subsistence,FINANCE AND COMMERCIAL                                                                              ,Staff Payment,BA0000312214,4.00,
BEIS,The Insolvency Service,06/03/2018,Travel and Subsistence,FINANCE AND COMMERCIAL                                                                              ,Staff Payment,BA0000312214,5.00,
BEIS,The Insolvency Service,06/03/2018,Travel and Subsistence,FINANCE AND COMMERCIAL                                                                              ,Staff Payment,BA0000312214,5.00,
BEIS,The Insolvency Service,06/03/2018,Travel and Subsistence,FINANCE AND COMMERCIAL                                                                              ,Staff Payment,BA0000312214,5.80,
BEIS,The Insolvency Service,06/03/2018,Travel and Subsistence,FINANCE AND COMMERCIAL                                                                              ,Staff Payment,BA0000312214,15.00,
BEIS,The Insolvency Service,06/03/2018,Travel and Subsistence,FINANCE AND COMMERCIAL                                                                              ,Staff Payment,BA0000312214,2.40,
BEIS,The Insolvency Service,06/03/2018,Travel and Subsistence,FINANCE AND COMMERCIAL                                                                              ,Staff Payment,BA0000312214,3.75,
BEIS,The Insolvency Service,06/03/2018,Travel and Subsistence,FINANCE AND COMMERCIAL                                                                              ,Staff Payment,BA0000312214,4.80,
BEIS,The Insolvency Service,06/03/2018,Travel and Subsistence,FINANCE AND COMMERCIAL                                                                              ,Staff Payment,BA0000312214,5.00,
BEIS,The Insolvency Service,06/03/2018,Travel and Subsistence,FINANCE AND COMMERCIAL                                                                              ,Staff Payment,BA0000312214,10.03,
BEIS,The Insolvency Service,06/03/2018,Travel and Subsistence,FINANCE AND COMMERCIAL                                                                              ,Staff Payment,BA0000312209,5.00,
BEIS,The Insolvency Service,06/03/2018,Travel and Subsistence,FINANCE AND COMMERCIAL                                                                              ,Staff Payment,BA0000312214,6.50,
BEIS,The Insolvency Service,06/03/2018,Travel and Subsistence,FINANCE AND COMMERCIAL                                                                              ,Staff Payment,BA0000312214,8.95,
BEIS,The Insolvency Service,06/03/2018,Travel and Subsistence,FINANCE AND COMMERCIAL                                                                              ,Staff Payment,BA0000312209,4.99,
BEIS,The Insolvency Service,06/03/2018,Travel and Subsistence,FINANCE AND COMMERCIAL                                                                              ,Staff Payment,BA0000312209,5.00,
BEIS,The Insolvency Service,06/03/2018,Travel and Subsistence,FINANCE AND COMMERCIAL                                                                              ,Staff Payment,BA0000312214,2.40,
BEIS,The Insolvency Service,06/03/2018,Travel and Subsistence,FINANCE AND COMMERCIAL                                                                              ,Staff Payment,BA0000312214,3.99,
BEIS,The Insolvency Service,06/03/2018,Travel and Subsistence,FINANCE AND COMMERCIAL                                                                              ,Staff Payment,BA0000312214,4.69,
BEIS,The Insolvency Service,06/03/2018,Travel and Subsistence,FINANCE AND COMMERCIAL                                                                              ,Staff Payment,BA0000312214,5.00,
BEIS,The Insolvency Service,06/03/2018,Travel and Subsistence,FINANCE AND COMMERCIAL                                                                              ,Staff Payment,BA0000312214,13.33,
BEIS,The Insolvency Service,06/03/2018,Travel and Subsistence,FINANCE AND COMMERCIAL                                                                              ,Staff Payment,BA0000312214,15.00,
BEIS,The Insolvency Service,06/03/2018,Travel and Subsistence,FINANCE AND COMMERCIAL                                                                              ,Staff Payment,BA0000312214,2.40,
BEIS,The Insolvency Service,06/03/2018,Travel and Subsistence,FINANCE AND COMMERCIAL                                                                              ,Staff Payment,BA0000312214,3.99,
BEIS,The Insolvency Service,06/03/2018,Travel and Subsistence,FINANCE AND COMMERCIAL                                                                              ,Staff Payment,BA0000312214,5.00,
BEIS,The Insolvency Service,06/03/2018,Travel and Subsistence,FINANCE AND COMMERCIAL                                                                              ,Staff Payment,BA0000312214,13.36,
BEIS,The Insolvency Service,06/03/2018,Travel and Subsistence,FINANCE AND COMMERCIAL                                                                              ,Staff Payment,BA0000312214,23.00,
BEIS,The Insolvency Service,06/03/2018,Travel and Subsistence,FINANCE AND COMMERCIAL                                                                              ,Staff Payment,BA0000312214,1.50,
BEIS,The Insolvency Service,06/03/2018,Travel and Subsistence,FINANCE AND COMMERCIAL                                                                              ,Staff Payment,BA0000312214,2.40,
BEIS,The Insolvency Service,06/03/2018,Travel and Subsistence,FINANCE AND COMMERCIAL                                                                              ,Staff Payment,BA0000312214,2.50,
BEIS,The Insolvency Service,06/03/2018,Travel and Subsistence,FINANCE AND COMMERCIAL                                                                              ,Staff Payment,BA0000312214,3.99,
BEIS,The Insolvency Service,06/03/2018,Travel and Subsistence,FINANCE AND COMMERCIAL                                                                              ,Staff Payment,BA0000312214,4.55,
BEIS,The Insolvency Service,06/03/2018,Travel and Subsistence,FINANCE AND COMMERCIAL                                                                              ,Staff Payment,BA0000312214,5.00,
BEIS,The Insolvency Service,06/03/2018,Travel and Subsistence,FINANCE AND COMMERCIAL                                                                              ,Staff Payment,BA0000312214,10.49,
BEIS,The Insolvency Service,06/03/2018,Travel and Subsistence,INFORMATION TECHNOLOGY                                                                              ,Staff Payment,BA0000312209,5.00,
BEIS,The Insolvency Service,06/03/2018,Travel and Subsistence,INFORMATION TECHNOLOGY                                                                              ,Staff Payment,BA0000312209,7.20,
BEIS,The Insolvency Service,06/03/2018,Travel and Subsistence,INFORMATION TECHNOLOGY                                                                              ,Staff Payment,BA0000312209,12.00,
BEIS,The Insolvency Service,06/03/2018,Travel and Subsistence,INFORMATION TECHNOLOGY                                                                              ,Staff Payment,BA0000312209,14.40,
BEIS,The Insolvency Service,06/03/2018,Travel and Subsistence,INFORMATION TECHNOLOGY                                                                              ,Staff Payment,BA0000312209,14.93,
BEIS,The Insolvency Service,06/03/2018,Travel and Subsistence,INFORMATION TECHNOLOGY                                                                              ,Staff Payment,BA0000312209,15.00,
BEIS,The Insolvency Service,06/03/2018,Travel and Subsistence,INFORMATION TECHNOLOGY                                                                              ,Staff Payment,BA0000312209,24.00,
BEIS,The Insolvency Service,06/03/2018,Travel and Subsistence,INFORMATION TECHNOLOGY                                                                              ,Staff Payment,BA0000312209,5.00,
BEIS,The Insolvency Service,06/03/2018,Travel and Subsistence,INFORMATION TECHNOLOGY                                                                              ,Staff Payment,BA0000312209,15.00,
BEIS,The Insolvency Service,06/03/2018,Travel and Subsistence,INFORMATION TECHNOLOGY                                                                              ,Staff Payment,BA0000312214,32.85,
BEIS,The Insolvency Service,06/03/2018,Travel and Subsistence,INFORMATION TECHNOLOGY                                                                              ,Staff Payment,BA0000312214,74.50,
BEIS,The Insolvency Service,06/03/2018,Travel and Subsistence,INVESTIGATIONS & ENFORCEMENT                                                                        ,Staff Payment,BA0000312214,6.75,
BEIS,The Insolvency Service,06/03/2018,Travel and Subsistence,INVESTIGATIONS & ENFORCEMENT                                                                        ,Staff Payment,BA0000312214,9.49,
BEIS,The Insolvency Service,06/03/2018,Travel and Subsistence,INVESTIGATIONS & ENFORCEMENT                                                                        ,Staff Payment,BA0000312214,10.70,
BEIS,The Insolvency Service,06/03/2018,Travel and Subsistence,INVESTIGATIONS & ENFORCEMENT                                                                        ,Staff Payment,BA0000312214,11.50,
BEIS,The Insolvency Service,06/03/2018,Travel and Subsistence,INVESTIGATIONS & ENFORCEMENT                                                                        ,Staff Payment,BA0000312214,12.99,
BEIS,The Insolvency Service,06/03/2018,Travel and Subsistence,INVESTIGATIONS & ENFORCEMENT                                                                        ,Staff Payment,BA0000312214,13.50,
BEIS,The Insolvency Service,06/03/2018,Travel and Subsistence,INVESTIGATIONS & ENFORCEMENT                                                                        ,Staff Payment,BA0000312214,13.80,
BEIS,The Insolvency Service,06/03/2018,Travel and Subsistence,INVESTIGATIONS & ENFORCEMENT                                                                        ,Staff Payment,BA0000312214,13.85,
BEIS,The Insolvency Service,06/03/2018,Travel and Subsistence,INVESTIGATIONS & ENFORCEMENT                                                                        ,Staff Payment,BA0000312214,15.00,
BEIS,The Insolvency Service,06/03/2018,Travel and Subsistence,INVESTIGATIONS & ENFORCEMENT                                                                        ,Staff Payment,BA0000312214,15.00,
BEIS,The Insolvency Service,06/03/2018,Travel and Subsistence,INVESTIGATIONS & ENFORCEMENT                                                                        ,Staff Payment,BA0000312214,19.35,
BEIS,The Insolvency Service,06/03/2018,Travel and Subsistence,INVESTIGATIONS & ENFORCEMENT                                                                        ,Staff Payment,BA0000312214,23.00,
BEIS,The Insolvency Service,06/03/2018,Travel and Subsistence,INVESTIGATIONS & ENFORCEMENT                                                                        ,Staff Payment,BA0000312214,34.50,
BEIS,The Insolvency Service,06/03/2018,Travel and Subsistence,INVESTIGATIONS & ENFORCEMENT                                                                        ,Staff Payment,BA0000312214,63.90,
BEIS,The Insolvency Service,06/03/2018,Travel and Subsistence,INVESTIGATIONS & ENFORCEMENT                                                                        ,Staff Payment,BA0000312214,81.00,
BEIS,The Insolvency Service,06/03/2018,Travel and Subsistence,INVESTIGATIONS & ENFORCEMENT                                                                        ,Staff Payment,BA0000312209,3.70,
BEIS,The Insolvency Service,06/03/2018,Travel and Subsistence,INVESTIGATIONS & ENFORCEMENT                                                                        ,Staff Payment,BA0000312209,4.00,
BEIS,The Insolvency Service,06/03/2018,Travel and Subsistence,INVESTIGATIONS & ENFORCEMENT                                                                        ,Staff Payment,BA0000312214,4.85,
BEIS,The Insolvency Service,06/03/2018,Travel and Subsistence,INVESTIGATIONS & ENFORCEMENT                                                                        ,Staff Payment,BA0000312209,2.50,
BEIS,The Insolvency Service,06/03/2018,Travel and Subsistence,INVESTIGATIONS & ENFORCEMENT                                                                        ,Staff Payment,BA0000312209,2.70,
BEIS,The Insolvency Service,06/03/2018,Travel and Subsistence,INVESTIGATIONS & ENFORCEMENT                                                                        ,Staff Payment,BA0000312209,3.20,
BEIS,The Insolvency Service,06/03/2018,Travel and Subsistence,INVESTIGATIONS & ENFORCEMENT                                                                        ,Staff Payment,BA0000312209,3.50,
BEIS,The Insolvency Service,06/03/2018,Travel and Subsistence,INVESTIGATIONS & ENFORCEMENT                                                                        ,Staff Payment,BA0000312209,4.25,
BEIS,The Insolvency Service,06/03/2018,Travel and Subsistence,INVESTIGATIONS & ENFORCEMENT                                                                        ,Staff Payment,BA0000312209,5.00,
BEIS,The Insolvency Service,06/03/2018,Travel and Subsistence,INVESTIGATIONS & ENFORCEMENT                                                                        ,Staff Payment,BA0000312209,6.35,
BEIS,The Insolvency Service,06/03/2018,Travel and Subsistence,INVESTIGATIONS & ENFORCEMENT                                                                        ,Staff Payment,BA0000312209,12.70,
BEIS,The Insolvency Service,06/03/2018,Travel and Subsistence,INVESTIGATIONS & ENFORCEMENT                                                                        ,Staff Payment,BA0000312209,1.50,
BEIS,The Insolvency Service,06/03/2018,Travel and Subsistence,INVESTIGATIONS & ENFORCEMENT                                                                        ,Staff Payment,BA0000312209,2.40,
BEIS,The Insolvency Service,06/03/2018,Travel and Subsistence,INVESTIGATIONS & ENFORCEMENT                                                                        ,Staff Payment,BA0000312209,3.34,
BEIS,The Insolvency Service,06/03/2018,Travel and Subsistence,INVESTIGATIONS & ENFORCEMENT                                                                        ,Staff Payment,BA0000312209,5.00,
BEIS,The Insolvency Service,06/03/2018,Travel and Subsistence,INVESTIGATIONS & ENFORCEMENT                                                                        ,Staff Payment,BA0000312209,46.53,
BEIS,The Insolvency Service,06/03/2018,Travel and Subsistence,INVESTIGATIONS & ENFORCEMENT                                                                        ,Staff Payment,BA0000312210,3.15,
BEIS,The Insolvency Service,06/03/2018,Travel and Subsistence,INVESTIGATIONS & ENFORCEMENT                                                                        ,Staff Payment,BA0000312210,4.50,
BEIS,The Insolvency Service,06/03/2018,Travel and Subsistence,INVESTIGATIONS & ENFORCEMENT                                                                        ,Staff Payment,BA0000312210,4.70,
BEIS,The Insolvency Service,06/03/2018,Travel and Subsistence,INVESTIGATIONS & ENFORCEMENT                                                                        ,Staff Payment,BA0000312210,14.15,
BEIS,The Insolvency Service,06/03/2018,Travel and Subsistence,INVESTIGATIONS & ENFORCEMENT                                                                        ,Staff Payment,BA0000312213,5.00,
BEIS,The Insolvency Service,06/03/2018,Travel and Subsistence,OFFICIAL RECEIVER SERVICES                                                                          ,Staff Payment,BA0000312210,5.20,
BEIS,The Insolvency Service,06/03/2018,Travel and Subsistence,OFFICIAL RECEIVER SERVICES                                                                          ,Staff Payment,BA0000312210,16.20,
BEIS,The Insolvency Service,06/03/2018,Travel and Subsistence,OFFICIAL RECEIVER SERVICES                                                                          ,Staff Payment,BA0000312210,26.50,
BEIS,The Insolvency Service,06/03/2018,Travel and Subsistence,OFFICIAL RECEIVER SERVICES                                                                          ,Staff Payment,BA0000312210,27.00,
BEIS,The Insolvency Service,06/03/2018,Travel and Subsistence,OFFICIAL RECEIVER SERVICES                                                                          ,Staff Payment,BA0000312210,3.40,
BEIS,The Insolvency Service,06/03/2018,Travel and Subsistence,OFFICIAL RECEIVER SERVICES                                                                          ,Staff Payment,BA0000312210,5.00,
BEIS,The Insolvency Service,06/03/2018,Travel and Subsistence,OFFICIAL RECEIVER SERVICES                                                                          ,Staff Payment,BA0000312210,26.10,
BEIS,The Insolvency Service,06/03/2018,Travel and Subsistence,OFFICIAL RECEIVER SERVICES                                                                          ,Staff Payment,BA0000312209,15.00,
BEIS,The Insolvency Service,06/03/2018,Travel and Subsistence,OFFICIAL RECEIVER SERVICES                                                                          ,Staff Payment,BA0000312210,68.00,
BEIS,The Insolvency Service,06/03/2018,Travel and Subsistence,OFFICIAL RECEIVER SERVICES                                                                          ,Staff Payment,BA0000312210,3.00,
BEIS,The Insolvency Service,06/03/2018,Travel and Subsistence,OFFICIAL RECEIVER SERVICES                                                                          ,Staff Payment,BA0000312210,4.05,
BEIS,The Insolvency Service,06/03/2018,Travel and Subsistence,OFFICIAL RECEIVER SERVICES                                                                          ,Staff Payment,BA0000312209,1.59,
BEIS,The Insolvency Service,06/03/2018,Travel and Subsistence,OFFICIAL RECEIVER SERVICES                                                                          ,Staff Payment,BA0000312209,5.00,
BEIS,The Insolvency Service,06/03/2018,Travel and Subsistence,OFFICIAL RECEIVER SERVICES                                                                          ,Staff Payment,BA0000312210,5.00,
BEIS,The Insolvency Service,06/03/2018,Travel and Subsistence,OFFICIAL RECEIVER SERVICES                                                                          ,Staff Payment,BA0000312214,11.55,
BEIS,The Insolvency Service,06/03/2018,Travel and Subsistence,OFFICIAL RECEIVER SERVICES                                                                          ,Staff Payment,BA0000312209,13.10,
BEIS,The Insolvency Service,06/03/2018,Travel and Subsistence,OFFICIAL RECEIVER SERVICES                                                                          ,Staff Payment,BA0000312209,9.90,
BEIS,The Insolvency Service,06/03/2018,Travel and Subsistence,OFFICIAL RECEIVER SERVICES                                                                          ,Staff Payment,BA0000312209,3.00,
BEIS,The Insolvency Service,06/03/2018,Travel and Subsistence,OFFICIAL RECEIVER SERVICES                                                                          ,Staff Payment,BA0000312209,5.00,
BEIS,The Insolvency Service,06/03/2018,Travel and Subsistence,OFFICIAL RECEIVER SERVICES                                                                          ,Staff Payment,BA0000312214,5.00,
BEIS,The Insolvency Service,06/03/2018,Travel and Subsistence,OFFICIAL RECEIVER SERVICES                                                                          ,Staff Payment,BA0000312214,8.10,
BEIS,The Insolvency Service,06/03/2018,Travel and Subsistence,OFFICIAL RECEIVER SERVICES                                                                          ,Staff Payment,BA0000312214,4.19,
BEIS,The Insolvency Service,06/03/2018,Travel and Subsistence,OFFICIAL RECEIVER SERVICES                                                                          ,Staff Payment,BA0000312214,9.00,
BEIS,The Insolvency Service,06/03/2018,Travel and Subsistence,OFFICIAL RECEIVER SERVICES                                                                          ,Staff Payment,BA0000312214,15.30,
BEIS,The Insolvency Service,06/03/2018,Travel and Subsistence,OFFICIAL RECEIVER SERVICES                                                                          ,Staff Payment,BA0000312209,3.94,
BEIS,The Insolvency Service,06/03/2018,Travel and Subsistence,OFFICIAL RECEIVER SERVICES                                                                          ,Staff Payment,BA0000312209,5.00,
BEIS,The Insolvency Service,06/03/2018,Travel and Subsistence,OFFICIAL RECEIVER SERVICES                                                                          ,Staff Payment,BA0000312209,7.10,
BEIS,The Insolvency Service,06/03/2018,Travel and Subsistence,OFFICIAL RECEIVER SERVICES                                                                          ,Staff Payment,BA0000312209,8.10,
BEIS,The Insolvency Service,06/03/2018,Travel and Subsistence,OFFICIAL RECEIVER SERVICES                                                                          ,Staff Payment,BA0000312209,15.00,
BEIS,The Insolvency Service,06/03/2018,Travel and Subsistence,OFFICIAL RECEIVER SERVICES                                                                          ,Staff Payment,BA0000312210,1.00,
BEIS,The Insolvency Service,06/03/2018,Travel and Subsistence,OFFICIAL RECEIVER SERVICES                                                                          ,Staff Payment,BA0000312210,45.00,
BEIS,The Insolvency Service,06/03/2018,Travel and Subsistence,OFFICIAL RECEIVER SERVICES                                                                          ,Staff Payment,BA0000312210,2.10,
BEIS,The Insolvency Service,06/03/2018,Travel and Subsistence,OFFICIAL RECEIVER SERVICES                                                                          ,Staff Payment,BA0000312210,18.00,
BEIS,The Insolvency Service,06/03/2018,Travel and Subsistence,OFFICIAL RECEIVER SERVICES                                                                          ,Staff Payment,BA0000312214,38.25,
BEIS,The Insolvency Service,06/03/2018,Travel and Subsistence,OFFICIAL RECEIVER SERVICES                                                                          ,Staff Payment,BA0000312214,3.00,
BEIS,The Insolvency Service,06/03/2018,Travel and Subsistence,OFFICIAL RECEIVER SERVICES                                                                          ,Staff Payment,BA0000312214,33.75,
BEIS,The Insolvency Service,06/03/2018,Travel and Subsistence,OFFICIAL RECEIVER SERVICES                                                                          ,Staff Payment,BA0000312210,1.50,
BEIS,The Insolvency Service,06/03/2018,Travel and Subsistence,OFFICIAL RECEIVER SERVICES                                                                          ,Staff Payment,BA0000312210,5.00,
BEIS,The Insolvency Service,06/03/2018,Travel and Subsistence,OFFICIAL RECEIVER SERVICES                                                                          ,Staff Payment,BA0000312210,7.77,
BEIS,The Insolvency Service,06/03/2018,Travel and Subsistence,OFFICIAL RECEIVER SERVICES                                                                          ,Staff Payment,BA0000312214,2.40,
BEIS,The Insolvency Service,06/03/2018,Travel and Subsistence,OFFICIAL RECEIVER SERVICES                                                                          ,Staff Payment,BA0000312214,14.59,
BEIS,The Insolvency Service,06/03/2018,Travel and Subsistence,OFFICIAL RECEIVER SERVICES                                                                          ,Staff Payment,BA0000312214,1.80,
BEIS,The Insolvency Service,06/03/2018,Travel and Subsistence,OFFICIAL RECEIVER SERVICES                                                                          ,Staff Payment,BA0000312214,23.40,
BEIS,The Insolvency Service,06/03/2018,Travel and Subsistence,OFFICIAL RECEIVER SERVICES                                                                          ,Staff Payment,BA0000312214,18.45,
BEIS,The Insolvency Service,06/03/2018,Travel and Subsistence,P&C - People Relations                                                                              ,Staff Payment,BA0000312210,2.40,
BEIS,The Insolvency Service,06/03/2018,Travel and Subsistence,P&C - People Relations                                                                              ,Staff Payment,BA0000312210,6.10,
BEIS,The Insolvency Service,06/03/2018,Travel and Subsistence,P&C - People Relations                                                                              ,Staff Payment,BA0000312210,12.15,
BEIS,The Insolvency Service,06/03/2018,Travel and Subsistence,PEOPLE & CAPABILITY                                                                                 ,Staff Payment,BA0000312210,2.40,
BEIS,The Insolvency Service,06/03/2018,Travel and Subsistence,PEOPLE & CAPABILITY                                                                                 ,Staff Payment,BA0000312210,9.00,
BEIS,The Insolvency Service,06/03/2018,Travel and Subsistence,PEOPLE & CAPABILITY                                                                                 ,Staff Payment,BA0000312210,18.00,
BEIS,The Insolvency Service,06/03/2018,Travel and Subsistence,PEOPLE & CAPABILITY                                                                                 ,Staff Payment,BA0000312210,215.30,
BEIS,The Insolvency Service,06/03/2018,Travel and Subsistence,PEOPLE & CAPABILITY                                                                                 ,Staff Payment,BA0000312210,4.05,
BEIS,The Insolvency Service,06/03/2018,Travel and Subsistence,PEOPLE & CAPABILITY                                                                                 ,Staff Payment,BA0000312210,9.00,
BEIS,The Insolvency Service,06/03/2018,Travel and Subsistence,PEOPLE & CAPABILITY                                                                                 ,Staff Payment,BA0000312210,18.00,
BEIS,The Insolvency Service,06/03/2018,Travel and Subsistence,PEOPLE & CAPABILITY                                                                                 ,Staff Payment,BA0000312210,4.49,
BEIS,The Insolvency Service,06/03/2018,Travel and Subsistence,PEOPLE & CAPABILITY                                                                                 ,Staff Payment,BA0000312210,9.00,
BEIS,The Insolvency Service,06/03/2018,Travel and Subsistence,PEOPLE & CAPABILITY                                                                                 ,Staff Payment,BA0000312210,18.00,
BEIS,The Insolvency Service,06/03/2018,Travel and Subsistence,PEOPLE & CAPABILITY                                                                                 ,Staff Payment,BA0000312210,14.00,
BEIS,The Insolvency Service,06/03/2018,Travel and Subsistence,PEOPLE & CAPABILITY                                                                                 ,Staff Payment,BA0000312210,21.00,
BEIS,The Insolvency Service,06/03/2018,Travel and Subsistence,PROJECTS                                                                                            ,Staff Payment,BA0000312209,2.59,
BEIS,The Insolvency Service,06/03/2018,Travel and Subsistence,PROJECTS                                                                                            ,Staff Payment,BA0000312209,2.85,
BEIS,The Insolvency Service,06/03/2018,Travel and Subsistence,PROJECTS                                                                                            ,Staff Payment,BA0000312209,5.00,
BEIS,The Insolvency Service,06/03/2018,Travel and Subsistence,PROJECTS                                                                                            ,Staff Payment,BA0000312209,7.70,
BEIS,The Insolvency Service,06/03/2018,Travel and Subsistence,PROJECTS                                                                                            ,Staff Payment,BA0000312209,8.90,
BEIS,The Insolvency Service,06/03/2018,Travel and Subsistence,PROJECTS                                                                                            ,Staff Payment,BA0000312209,14.00,
BEIS,The Insolvency Service,07/03/2018,Accommodation,CRIMINAL ENFORCEMENT                                                                                ,"Department for Business, Energy and Industrial Strategy (BE)",BA0000312247,"20,000.00",
BEIS,The Insolvency Service,07/03/2018,Accommodation,ESTATES,BEIS - DEPT. FOR BUSINESS INNOVATION & SKILLS               ,BA0000312252,"-23,007.00",888825550
BEIS,The Insolvency Service,07/03/2018,Accommodation,ESTATES,BEIS - DEPT. FOR BUSINESS INNOVATION & SKILLS               ,BA0000312252,"-10,206.00",888825550
BEIS,The Insolvency Service,07/03/2018,Accommodation,ESTATES,BEIS - DEPT. FOR BUSINESS INNOVATION & SKILLS               ,BA0000312252,"-3,588.00",888825550
BEIS,The Insolvency Service,07/03/2018,Accommodation,ESTATES,BEIS - DEPT. FOR BUSINESS INNOVATION & SKILLS               ,BA0000312252,"5,404.00",888825550
BEIS,The Insolvency Service,07/03/2018,Accommodation,ESTATES,BEIS - DEPT. FOR BUSINESS INNOVATION & SKILLS               ,BA0000312252,"13,588.00",888825550
BEIS,The Insolvency Service,07/03/2018,Accommodation,ESTATES,BEIS - DEPT. FOR BUSINESS INNOVATION & SKILLS               ,BA0000312252,"15,945.00",888825550
BEIS,The Insolvency Service,07/03/2018,Accommodation,ESTATES,BEIS - DEPT. FOR BUSINESS INNOVATION & SKILLS               ,BA0000312252,"22,004.00",888825550
BEIS,The Insolvency Service,07/03/2018,Accommodation,ESTATES,BEIS - DEPT. FOR BUSINESS INNOVATION & SKILLS               ,BA0000312252,"28,204.00",888825550
BEIS,The Insolvency Service,07/03/2018,Accommodation,ESTATES,BEIS - DEPT. FOR BUSINESS INNOVATION & SKILLS               ,BA0000312252,"43,187.00",888825550
BEIS,The Insolvency Service,07/03/2018,Accommodation,ESTATES,BEIS - DEPT. FOR BUSINESS INNOVATION & SKILLS               ,BA0000312252,"134,483.00",888825550
BEIS,The Insolvency Service,07/03/2018,Accommodation,ESTATES,BEIS - DEPT. FOR BUSINESS INNOVATION & SKILLS               ,BA0000312252,"290,944.00",888825550
BEIS,The Insolvency Service,07/03/2018,Accommodation,ESTATES                                                                                             ,BEIS - DEPT. FOR BUSINESS INNOVATION & SKILLS               ,BA0000312253,"6,733.18",888825550
BEIS,The Insolvency Service,07/03/2018,Accommodation,ESTATES                                                                                             ,BEIS - DEPT. FOR BUSINESS INNOVATION & SKILLS               ,BA0000312253,"8,801.63",888825550
BEIS,The Insolvency Service,07/03/2018,Accommodation,ESTATES                                                                                             ,BEIS - DEPT. FOR BUSINESS INNOVATION & SKILLS               ,BA0000312253,"22,642.00",888825550
BEIS,The Insolvency Service,07/03/2018,Accommodation,ESTATES,CBRE LIMITED,BA0000312224,"187,691.63",
BEIS,The Insolvency Service,07/03/2018,Accommodation,ESTATES,CBRE LIMITED,BA0000312249,484.64,
BEIS,The Insolvency Service,07/03/2018,Accommodation,ESTATES,CBRE LIMITED,BA0000312250,"2,809.91",
BEIS,The Insolvency Service,07/03/2018,Accommodation,ESTATES,COLLIERS INTERNATIONAL PROPERTY CONSULTANTS LTD             ,BA0000312254,"21,524.85",
BEIS,The Insolvency Service,07/03/2018,Accommodation,ESTATES,COLLIERS INTERNATIONAL PROPERTY CONSULTANTS LTD             ,BA0000312254,"70,530.00",
BEIS,The Insolvency Service,07/03/2018,Accommodation,ESTATES,COMPANIES HOUSE,BA0000312257,"4,865.79",GD255
BEIS,The Insolvency Service,07/03/2018,Accommodation,ESTATES,COMPANIES HOUSE,BA0000312257,"10,942.48",GD255
BEIS,The Insolvency Service,07/03/2018,Accommodation,ESTATES,COMPANIES HOUSE,BA0000312257,"12,230.75",GD255
BEIS,The Insolvency Service,07/03/2018,Agency Workers,INFORMATION TECHNOLOGY                                                                              ,CONCEPT INFORMATION TECHNOLOGY LTD                          ,BA0000312230,"1,312.50",776147892
BEIS,The Insolvency Service,07/03/2018,Computer and IT Systems,CRIMINAL ENFORCEMENT                                                                                ,GEOFF SMITH ASSOCIATES LTD                                  ,BA0000312251,354.00,813047166
BEIS,The Insolvency Service,07/03/2018,Computer and IT Systems,INFORMATION TECHNOLOGY                                                                              ,ATOS IT SERVICES UK LTD,BA0000312246,"70,098.93",232327983
BEIS,The Insolvency Service,07/03/2018,Computer and IT Systems,INFORMATION TECHNOLOGY                                                                              ,EXPERIAN QAS LTD,BA0000312241,"9,783.60",887133593
BEIS,The Insolvency Service,07/03/2018,Computer and IT Systems,INFORMATION TECHNOLOGY                                                                              ,EXPERIAN QAS LTD,BA0000312242,"2,422.30",887133593
BEIS,The Insolvency Service,07/03/2018,Insolvency Case Related Costs,OFFICIAL RECEIVER SERVICES                                                                          ,HPI LTD,BA0000312229,297.71,942407139
BEIS,The Insolvency Service,07/03/2018,Insolvency Case Related Costs,OFFICIAL RECEIVER SERVICES                                                                          ,HPI LTD,BA0000312239,26.74,942407139
BEIS,The Insolvency Service,07/03/2018,Insolvency Case Related Costs,OFFICIAL RECEIVER SERVICES                                                                          ,HPI LTD,BA0000312240,3.73,942407139
BEIS,The Insolvency Service,07/03/2018,Insolvency Case Related Costs,OFFICIAL RECEIVER SERVICES                                                                          ,HPI LTD,BA0000312256,74.44,942407139
BEIS,The Insolvency Service,07/03/2018,Insolvency Case Related Costs,OFFICIAL RECEIVER SERVICES                                                                          ,THE STATIONERY OFFICE LTD,BA0000312236,149.16,662774703
BEIS,The Insolvency Service,07/03/2018,Insolvency Case Related Costs,OFFICIAL RECEIVER SERVICES                                                                          ,THE STATIONERY OFFICE LTD,BA0000312237,74.58,662774703
BEIS,The Insolvency Service,07/03/2018,Insolvency Case Related Costs,OFFICIAL RECEIVER SERVICES                                                                          ,THE STATIONERY OFFICE LTD,BA0000312238,74.58,662774703
BEIS,The Insolvency Service,07/03/2018,Investigation and Enforcement Costs,CUSTOMER AND COMMUNICATIONS                                                                         ,Cision                                                      ,BA0000312244,"1,658.25",757158012
BEIS,The Insolvency Service,07/03/2018,Investigation and Enforcement Costs,INVESTIGATIONS & ENFORCEMENT                                                                        ,GRANT THORNTON,BA0000312243,"5,526.00",835586102
BEIS,The Insolvency Service,07/03/2018,Investigation and Enforcement Costs,INVESTIGATIONS & ENFORCEMENT                                                                        ,HOWES PERCIVAL,BA0000312225,"1,230.00",119523573
BEIS,The Insolvency Service,07/03/2018,Investigation and Enforcement Costs,INVESTIGATIONS & ENFORCEMENT                                                                        ,TNT UK LTD,BA0000312232,9.15,354715057
BEIS,The Insolvency Service,07/03/2018,Investigation and Enforcement Costs,INVESTIGATIONS & ENFORCEMENT                                                                        ,TNT UK LTD,BA0000312235,23.84,354715057
BEIS,The Insolvency Service,07/03/2018,Office Machinery,CRIMINAL ENFORCEMENT                                                                                ,PITNEY BOWES FINANCE LTD,BA0000312245,386.85,
BEIS,The Insolvency Service,07/03/2018,Office Supplies and Services,OFFICIAL RECEIVER SERVICES                                                                          ,HPI LTD,BA0000312233,3.73,942407139
BEIS,The Insolvency Service,07/03/2018,Postage,OFFICIAL RECEIVER SERVICES                                                                          ,NEOPOST LIMITED (CONSUMABLES),BA0000312248,489.44,
BEIS,The Insolvency Service,07/03/2018,Insolvency Case Related Costs,FINANCE AND COMMERCIAL,INSOLVENCY SERVICE,BA0000312260,"4,151.87",
BEIS,The Insolvency Service,07/03/2018,Telecoms,PROJECTS                                                                                            ,BT CONFERENCING SERVICES,BA0000312226,2.00,
BEIS,The Insolvency Service,07/03/2018,Telecoms,BUSINESS SERVICES DIRECTORATE                                                                       ,BT CONFERENCING SERVICES,BA0000312226,8.26,
BEIS,The Insolvency Service,07/03/2018,Telecoms,BUSINESS SERVICES DIRECTORATE                                                                       ,BT CONFERENCING SERVICES,BA0000312226,9.02,
BEIS,The Insolvency Service,07/03/2018,Telecoms,BUSINESS SERVICES DIRECTORATE                                                                       ,BT CONFERENCING SERVICES,BA0000312226,29.32,
BEIS,The Insolvency Service,07/03/2018,Telecoms,BUSINESS SERVICES DIRECTORATE                                                                       ,BT CONFERENCING SERVICES,BA0000312226,32.68,
BEIS,The Insolvency Service,07/03/2018,Telecoms,BUSINESS SERVICES DIRECTORATE                                                                       ,BT CONFERENCING SERVICES,BA0000312226,45.60,
BEIS,The Insolvency Service,07/03/2018,Telecoms,CHIEF EXECUTIVE DIVISION                                                                            ,BT CONFERENCING SERVICES,BA0000312226,27.90,
BEIS,The Insolvency Service,07/03/2018,Telecoms,CUSTOMER AND COMMUNICATIONS                                                                         ,BT CONFERENCING SERVICES,BA0000312226,3.96,
BEIS,The Insolvency Service,07/03/2018,Telecoms,CUSTOMER AND COMMUNICATIONS                                                                         ,BT CONFERENCING SERVICES,BA0000312226,193.82,
BEIS,The Insolvency Service,07/03/2018,Telecoms,ESTATES,BT CONFERENCING SERVICES,BA0000312226,2.00,
BEIS,The Insolvency Service,07/03/2018,Telecoms,EXTERNAL AFFAIRS                                                                                    ,BT CONFERENCING SERVICES,BA0000312226,15.42,
BEIS,The Insolvency Service,07/03/2018,Telecoms,EXTERNAL AFFAIRS                                                                                    ,BT CONFERENCING SERVICES,BA0000312226,15.74,
BEIS,The Insolvency Service,07/03/2018,Telecoms,EXTERNAL AFFAIRS                                                                                    ,BT CONFERENCING SERVICES,BA0000312226,23.88,
BEIS,The Insolvency Service,07/03/2018,Telecoms,FINANCE AND COMMERCIAL                                                                              ,BT CONFERENCING SERVICES,BA0000312226,3.41,
BEIS,The Insolvency Service,07/03/2018,Telecoms,FINANCE AND COMMERCIAL,BT CONFERENCING SERVICES,BA0000312226,11.08,
BEIS,The Insolvency Service,07/03/2018,Telecoms,FINANCE AND COMMERCIAL                                                                              ,BT CONFERENCING SERVICES,BA0000312226,11.47,
BEIS,The Insolvency Service,07/03/2018,Telecoms,FINANCE AND COMMERCIAL,BT CONFERENCING SERVICES,BA0000312226,16.98,
BEIS,The Insolvency Service,07/03/2018,Telecoms,FINANCE AND COMMERCIAL                                                                              ,BT CONFERENCING SERVICES,BA0000312226,32.59,
BEIS,The Insolvency Service,07/03/2018,Telecoms,FINANCE AND COMMERCIAL                                                                              ,BT CONFERENCING SERVICES,BA0000312226,33.12,
BEIS,The Insolvency Service,07/03/2018,Telecoms,FINANCE AND COMMERCIAL                                                                              ,BT CONFERENCING SERVICES,BA0000312226,39.76,
BEIS,The Insolvency Service,07/03/2018,Telecoms,FINANCE AND COMMERCIAL,BT CONFERENCING SERVICES,BA0000312226,43.64,
BEIS,The Insolvency Service,07/03/2018,Telecoms,FINANCE AND COMMERCIAL                                                                              ,BT CONFERENCING SERVICES,BA0000312226,45.28,
BEIS,The Insolvency Service,07/03/2018,Telecoms,INFORMATION TECHNOLOGY                                                                              ,BT CONFERENCING SERVICES,BA0000312226,1.25,
BEIS,The Insolvency Service,07/03/2018,Telecoms,INFORMATION TECHNOLOGY                                                                              ,BT CONFERENCING SERVICES,BA0000312226,3.00,
BEIS,The Insolvency Service,07/03/2018,Telecoms,INFORMATION TECHNOLOGY                                                                              ,BT CONFERENCING SERVICES,BA0000312226,9.07,
BEIS,The Insolvency Service,07/03/2018,Telecoms,INFORMATION TECHNOLOGY                                                                              ,BT CONFERENCING SERVICES,BA0000312226,11.54,
BEIS,The Insolvency Service,07/03/2018,Telecoms,INFORMATION TECHNOLOGY                                                                              ,BT CONFERENCING SERVICES,BA0000312226,85.76,
BEIS,The Insolvency Service,07/03/2018,Telecoms,INFORMATION TECHNOLOGY                                                                              ,BT CONFERENCING SERVICES,BA0000312226,138.16,
BEIS,The Insolvency Service,07/03/2018,Telecoms,INFORMATION TECHNOLOGY                                                                              ,BT CONFERENCING SERVICES,BA0000312226,268.78,
BEIS,The Insolvency Service,07/03/2018,Telecoms,INFORMATION TECHNOLOGY                                                                              ,KCOM GROUP PLC,BA0000312234,72.00,647235137
BEIS,The Insolvency Service,07/03/2018,Telecoms,INVESTIGATIONS & ENFORCEMENT                                                                        ,BT CONFERENCING SERVICES,BA0000312226,0.32,
BEIS,The Insolvency Service,07/03/2018,Telecoms,INVESTIGATIONS & ENFORCEMENT                                                                        ,BT CONFERENCING SERVICES,BA0000312226,1.64,
BEIS,The Insolvency Service,07/03/2018,Telecoms,INVESTIGATIONS & ENFORCEMENT                                                                        ,BT CONFERENCING SERVICES,BA0000312226,3.43,
BEIS,The Insolvency Service,07/03/2018,Telecoms,INVESTIGATIONS & ENFORCEMENT                                                                        ,BT CONFERENCING SERVICES,BA0000312226,5.44,
BEIS,The Insolvency Service,07/03/2018,Telecoms,INVESTIGATIONS & ENFORCEMENT                                                                        ,BT CONFERENCING SERVICES,BA0000312226,10.25,
BEIS,The Insolvency Service,07/03/2018,Telecoms,INVESTIGATIONS & ENFORCEMENT                                                                        ,BT CONFERENCING SERVICES,BA0000312226,30.18,
BEIS,The Insolvency Service,07/03/2018,Telecoms,INVESTIGATIONS & ENFORCEMENT                                                                        ,BT CONFERENCING SERVICES,BA0000312226,37.01,
BEIS,The Insolvency Service,07/03/2018,Telecoms,INVESTIGATIONS & ENFORCEMENT                                                                        ,BT CONFERENCING SERVICES,BA0000312226,39.14,
BEIS,The Insolvency Service,07/03/2018,Telecoms,INVESTIGATIONS & ENFORCEMENT                                                                        ,BT CONFERENCING SERVICES,BA0000312226,76.41,
BEIS,The Insolvency Service,07/03/2018,Telecoms,OFFICIAL RECEIVER SERVICES                                                                          ,BT CONFERENCING SERVICES,BA0000312226,0.02,
BEIS,The Insolvency Service,07/03/2018,Telecoms,OFFICIAL RECEIVER SERVICES                                                                          ,BT CONFERENCING SERVICES,BA0000312226,0.05,
BEIS,The Insolvency Service,07/03/2018,Telecoms,OFFICIAL RECEIVER SERVICES                                                                          ,BT CONFERENCING SERVICES,BA0000312226,2.17,
BEIS,The Insolvency Service,07/03/2018,Telecoms,OFFICIAL RECEIVER SERVICES                                                                          ,BT CONFERENCING SERVICES,BA0000312226,2.80,
BEIS,The Insolvency Service,07/03/2018,Telecoms,OFFICIAL RECEIVER SERVICES                                                                          ,BT CONFERENCING SERVICES,BA0000312226,3.26,
BEIS,The Insolvency Service,07/03/2018,Telecoms,OFFICIAL RECEIVER SERVICES                                                                          ,BT CONFERENCING SERVICES,BA0000312226,4.88,
BEIS,The Insolvency Service,07/03/2018,Telecoms,OFFICIAL RECEIVER SERVICES                                                                          ,BT CONFERENCING SERVICES,BA0000312226,8.36,
BEIS,The Insolvency Service,07/03/2018,Telecoms,OFFICIAL RECEIVER SERVICES                                                                          ,BT CONFERENCING SERVICES,BA0000312226,9.49,
BEIS,The Insolvency Service,07/03/2018,Telecoms,OFFICIAL RECEIVER SERVICES                                                                          ,BT CONFERENCING SERVICES,BA0000312226,9.55,
BEIS,The Insolvency Service,07/03/2018,Telecoms,OFFICIAL RECEIVER SERVICES                                                                          ,BT CONFERENCING SERVICES,BA0000312226,11.70,
BEIS,The Insolvency Service,07/03/2018,Telecoms,OFFICIAL RECEIVER SERVICES                                                                          ,BT CONFERENCING SERVICES,BA0000312226,15.92,
BEIS,The Insolvency Service,07/03/2018,Telecoms,OFFICIAL RECEIVER SERVICES                                                                          ,BT CONFERENCING SERVICES,BA0000312226,16.67,
BEIS,The Insolvency Service,07/03/2018,Telecoms,OFFICIAL RECEIVER SERVICES                                                                          ,BT CONFERENCING SERVICES,BA0000312226,17.41,
BEIS,The Insolvency Service,07/03/2018,Telecoms,OFFICIAL RECEIVER SERVICES                                                                          ,BT CONFERENCING SERVICES,BA0000312226,22.90,
BEIS,The Insolvency Service,07/03/2018,Telecoms,OFFICIAL RECEIVER SERVICES                                                                          ,BT CONFERENCING SERVICES,BA0000312226,23.57,
BEIS,The Insolvency Service,07/03/2018,Telecoms,OFFICIAL RECEIVER SERVICES                                                                          ,BT CONFERENCING SERVICES,BA0000312226,25.09,
BEIS,The Insolvency Service,07/03/2018,Telecoms,OFFICIAL RECEIVER SERVICES                                                                          ,BT CONFERENCING SERVICES,BA0000312226,33.02,
BEIS,The Insolvency Service,07/03/2018,Telecoms,OFFICIAL RECEIVER SERVICES                                                                          ,BT CONFERENCING SERVICES,BA0000312226,38.08,
BEIS,The Insolvency Service,07/03/2018,Telecoms,OFFICIAL RECEIVER SERVICES                                                                          ,BT CONFERENCING SERVICES,BA0000312226,48.00,
BEIS,The Insolvency Service,07/03/2018,Telecoms,OFFICIAL RECEIVER SERVICES                                                                          ,BT CONFERENCING SERVICES,BA0000312226,63.50,
BEIS,The Insolvency Service,07/03/2018,Telecoms,OFFICIAL RECEIVER SERVICES                                                                          ,BT CONFERENCING SERVICES,BA0000312226,66.38,
BEIS,The Insolvency Service,07/03/2018,Telecoms,P&C - People Relations                                                                              ,BT CONFERENCING SERVICES,BA0000312226,29.06,
BEIS,The Insolvency Service,07/03/2018,Telecoms,PEOPLE & CAPABILITY                                                                                 ,BT CONFERENCING SERVICES,BA0000312226,13.36,
BEIS,The Insolvency Service,07/03/2018,Telecoms,PEOPLE & CAPABILITY                                                                                 ,BT CONFERENCING SERVICES,BA0000312226,51.67,
BEIS,The Insolvency Service,07/03/2018,Telecoms,PEOPLE & CAPABILITY                                                                                 ,BT CONFERENCING SERVICES,BA0000312226,61.13,
BEIS,The Insolvency Service,07/03/2018,Telecoms,PROJECTS                                                                                            ,BT CONFERENCING SERVICES,BA0000312226,0.41,
BEIS,The Insolvency Service,07/03/2018,Training Costs,PROJECTS                                                                                            ,"Premier People Solutions Ltd, T/A Premier Partnership       ",BA0000312227,"1,200.00",
BEIS,The Insolvency Service,07/03/2018,Training Costs,INVESTIGATIONS & ENFORCEMENT                                                                        ,BOND SOLON TRAINING LIMITED (LONDON)                        ,BA0000312231,"2,230.00",899372551
BEIS,The Insolvency Service,07/03/2018,Training Costs,OFFICIAL RECEIVER SERVICES                                                                          ,Rada in Business Ltd                                        ,BA0000312228,"3,000.00",
BEIS,The Insolvency Service,09/03/2018,Investigation and Enforcement Costs,INVESTIGATIONS & ENFORCEMENT                                                                        ,5 ST ANDREWS HILL                                           ,BA0000312299,"1,986.24",703074472
BEIS,The Insolvency Service,09/03/2018,Investigation and Enforcement Costs,INVESTIGATIONS & ENFORCEMENT                                                                        ,St Johns Buildings Barristers Chambers                      ,BA0000312302,627.84,
BEIS,The Insolvency Service,09/03/2018,Accommodation,ESTATES,CBRE LIMITED,BA0000312290,"2,624.22",
BEIS,The Insolvency Service,09/03/2018,Accommodation,ESTATES,COLLIERS INTERNATIONAL PROPERTY CONSULTANTS LTD             ,BA0000312265,"1,247.00",
BEIS,The Insolvency Service,09/03/2018,Accommodation,ESTATES,COLLIERS INTERNATIONAL PROPERTY CONSULTANTS LTD             ,BA0000312266,"3,672.19",
BEIS,The Insolvency Service,09/03/2018,Agency Workers,PROJECTS                                                                                            ,AURIONPRO SOLUTIONS PLC                                     ,BA0000312280,"38,000.00",425462166
BEIS,The Insolvency Service,09/03/2018,Agency Workers,PROJECTS                                                                                            ,AURIONPRO SOLUTIONS PLC                                     ,BA0000312287,"1,178.60",425462166
BEIS,The Insolvency Service,09/03/2018,Agency Workers,CUSTOMER AND COMMUNICATIONS                                                                         ,CAPITA BUSINESS SERVICES LTD,BA0000312274,"3,002.64",618184140
BEIS,The Insolvency Service,09/03/2018,Agency Workers,FINANCE AND COMMERCIAL,CAPITA BUSINESS SERVICES LTD,BA0000312276,"4,025.76",618184140
BEIS,The Insolvency Service,09/03/2018,Agency Workers,FINANCE AND COMMERCIAL                                                                              ,CAPITA BUSINESS SERVICES LTD,BA0000312285,"2,145.10",618184140
BEIS,The Insolvency Service,09/03/2018,Agency Workers,FINANCE AND COMMERCIAL                                                                              ,CAPITA BUSINESS SERVICES LTD,BA0000312286,"1,209.10",618184140
BEIS,The Insolvency Service,09/03/2018,Agency Workers,FINANCE AND COMMERCIAL,CAPITA BUSINESS SERVICES LTD,BA0000312297,"3,016.19",618184140
BEIS,The Insolvency Service,09/03/2018,Agency Workers,FINANCE AND COMMERCIAL                                                                              ,CAPITA BUSINESS SERVICES LTD,BA0000312300,"2,145.10",618184140
BEIS,The Insolvency Service,09/03/2018,Agency Workers,INFORMATION TECHNOLOGY                                                                              ,CAPITA BUSINESS SERVICES LTD,BA0000312275,"1,506.45",618184140
BEIS,The Insolvency Service,09/03/2018,Agency Workers,INFORMATION TECHNOLOGY                                                                              ,CAPITA BUSINESS SERVICES LTD,BA0000312294,"2,500.70",618184140
BEIS,The Insolvency Service,09/03/2018,Agency Workers,INFORMATION TECHNOLOGY                                                                              ,CAPITA BUSINESS SERVICES LTD,BA0000312295,"2,230.10",618184140
BEIS,The Insolvency Service,09/03/2018,Agency Workers,INFORMATION TECHNOLOGY                                                                              ,CAPITA BUSINESS SERVICES LTD,BA0000312296,"2,500.70",618184140
BEIS,The Insolvency Service,09/03/2018,Agency Workers,INFORMATION TECHNOLOGY                                                                              ,CAPITA BUSINESS SERVICES LTD,BA0000312298,"2,230.10",618184140
BEIS,The Insolvency Service,09/03/2018,Agency Workers,INFORMATION TECHNOLOGY                                                                              ,CAPITA BUSINESS SERVICES LTD,BA0000312301,"2,230.10",618184140
BEIS,The Insolvency Service,09/03/2018,Agency Workers,INFORMATION TECHNOLOGY                                                                              ,CONCEPT INFORMATION TECHNOLOGY LTD                          ,BA0000312283,"1,125.00",776147892
BEIS,The Insolvency Service,09/03/2018,Agency Workers,INFORMATION TECHNOLOGY                                                                              ,CONCEPT INFORMATION TECHNOLOGY LTD                          ,BA0000312284,750.00,776147892
BEIS,The Insolvency Service,09/03/2018,Agency Workers,PROJECTS                                                                                            ,CAPITA BUSINESS SERVICES LTD,BA0000312272,"7,268.66",618184140
BEIS,The Insolvency Service,09/03/2018,Computer and IT Systems,CUSTOMER AND COMMUNICATIONS                                                                         ,"GOVDELIVERY, LLC D/B/A GRANICUS                             ",BA0000312292,655.00,943669974
BEIS,The Insolvency Service,09/03/2018,Computer and IT Systems,CUSTOMER AND COMMUNICATIONS                                                                         ,"GOVDELIVERY, LLC D/B/A GRANICUS                             ",BA0000312293,655.00,943669974
BEIS,The Insolvency Service,09/03/2018,Computer and IT Systems,INFORMATION TECHNOLOGY                                                                              ,CAPITA BUSINESS SERVICES LTD,BA0000312273,"2,774.70",618184140
BEIS,The Insolvency Service,09/03/2018,Computer and IT Systems,INFORMATION TECHNOLOGY                                                                              ,UKCLOUD LTD                                                 ,BA0000312291,"5,389.81",172647982
BEIS,The Insolvency Service,09/03/2018,Computer and IT Systems,PEOPLE & CAPABILITY                                                                                 ,"GOVDELIVERY, LLC D/B/A GRANICUS                             ",BA0000312292,131.00,943669974
BEIS,The Insolvency Service,09/03/2018,Computer and IT Systems,PEOPLE & CAPABILITY                                                                                 ,"GOVDELIVERY, LLC D/B/A GRANICUS                             ",BA0000312293,131.00,943669974
BEIS,The Insolvency Service,09/03/2018,Insolvency Case Related Costs,FINANCE AND COMMERCIAL                                                                              ,EQUIFAX LTD                                                 ,BA0000312262,655.86,565629213
BEIS,The Insolvency Service,09/03/2018,Insolvency Case Related Costs,FINANCE AND COMMERCIAL                                                                              ,SIRS (EUROPE) LTD,BA0000312261,"20,550.00",990834974
BEIS,The Insolvency Service,09/03/2018,Insolvency Case Related Costs,OFFICIAL RECEIVER SERVICES                                                                          ,THE STATIONERY OFFICE LTD,BA0000312277,74.58,662774703
BEIS,The Insolvency Service,09/03/2018,Investigation and Enforcement Costs,INVESTIGATIONS & ENFORCEMENT                                                                        ,TNT UK LTD,BA0000312282,16.48,354715057
BEIS,The Insolvency Service,09/03/2018,Postage,FINANCE AND COMMERCIAL                                                                              ,TNT UK LTD,BA0000312281,20.06,354715057
BEIS,The Insolvency Service,09/03/2018,Postage,INFORMATION TECHNOLOGY                                                                              ,TNT UK LTD,BA0000312278,114.12,354715057
BEIS,The Insolvency Service,09/03/2018,Telecoms,BUSINESS SERVICES DIRECTORATE                                                                       ,SYNTEC LTD                                                  ,BA0000312279,"1,399.60",264618586
BEIS,The Insolvency Service,12/03/2018,Investigation and Enforcement Costs,INVESTIGATIONS & ENFORCEMENT                                                                        ,Kenworthy's Chambers                                        ,BA0000312340,180.00,
BEIS,The Insolvency Service,12/03/2018,Investigation and Enforcement Costs,CRIMINAL ENFORCEMENT                                                                                ,"Mendip Media Group Ltd (now trading as ""Appen"") - (transcri)",BA0000312339,140.21,609546425
BEIS,The Insolvency Service,12/03/2018,Investigation and Enforcement Costs,CRIMINAL ENFORCEMENT                                                                                ,"Restore PLC (Was ""PHS Records Management"" - long-term stora)",BA0000312341,54.56,8438630
BEIS,The Insolvency Service,12/03/2018,Accommodation,ESTATES,CITY OF PLYMOUTH,BA0000312353,"7,243.75",
BEIS,The Insolvency Service,12/03/2018,Accommodation,ESTATES,CITY OF PLYMOUTH,BA0000312354,"15,281.24",
BEIS,The Insolvency Service,12/03/2018,Accommodation,ESTATES,CITY OF PLYMOUTH,BA0000312355,600.00,
BEIS,The Insolvency Service,12/03/2018,Accommodation,ESTATES,CITY OF PLYMOUTH,BA0000312356,"1,200.00",
BEIS,The Insolvency Service,12/03/2018,Computer and IT Systems,INFORMATION TECHNOLOGY                                                                              ,Castleton Software Solutions Ltd                            ,BA0000312306,"142,200.00",813905437
BEIS,The Insolvency Service,12/03/2018,Computer and IT Systems,INFORMATION TECHNOLOGY                                                                              ,KDS UK LTD,BA0000312333,"2,786.40",776463881
BEIS,The Insolvency Service,12/03/2018,Computer and IT Systems,PROJECTS                                                                                            ,Castleton Software Solutions Ltd                            ,BA0000312305,450.00,813905437
BEIS,The Insolvency Service,12/03/2018,Employee Related Costs,EXTERNAL AFFAIRS                                                                                    ,Staff Payment,BA0000312348,4.25,
BEIS,The Insolvency Service,12/03/2018,Employee Related Costs,OFFICIAL RECEIVER SERVICES                                                                          ,Staff Payment,BA0000312351,236.00,
BEIS,The Insolvency Service,12/03/2018,Employee Related Costs,OFFICIAL RECEIVER SERVICES                                                                          ,Staff Payment,BA0000312351,236.00,
BEIS,The Insolvency Service,12/03/2018,Insolvency Case Related Costs,OFFICIAL RECEIVER SERVICES                                                                          ,COMPANIES HOUSE,BA0000312345,4.00,GD255
BEIS,The Insolvency Service,12/03/2018,Insolvency Case Related Costs,OFFICIAL RECEIVER SERVICES                                                                          ,FRANK G. BOWEN LTD,BA0000312336,102.00,238504366
BEIS,The Insolvency Service,12/03/2018,Insolvency Case Related Costs,OFFICIAL RECEIVER SERVICES                                                                          ,ROYAL MAIL (REDIRECTION)                                    ,BA0000312304,"8,667.00",
BEIS,The Insolvency Service,12/03/2018,Investigation and Enforcement Costs,CRIMINAL ENFORCEMENT                                                                                ,MIDLANDS FRAUD FORUM,BA0000312334,910.00,
BEIS,The Insolvency Service,12/03/2018,Investigation and Enforcement Costs,CRIMINAL ENFORCEMENT                                                                                ,MIDLANDS FRAUD FORUM,BA0000312335,130.00,
BEIS,The Insolvency Service,12/03/2018,Investigation and Enforcement Costs,CUSTOMER AND COMMUNICATIONS                                                                         ,FINANCIAL TIMES                                             ,BA0000312343,"3,627.00",226162332
BEIS,The Insolvency Service,12/03/2018,Office Supplies and Services,BUSINESS SERVICES DIRECTORATE                                                                       ,Staff Payment,BA0000312351,3.00,
BEIS,The Insolvency Service,12/03/2018,Office Supplies and Services,BUSINESS SERVICES DIRECTORATE                                                                       ,Staff Payment,BA0000312351,6.00,
BEIS,The Insolvency Service,12/03/2018,Office Supplies and Services,BUSINESS SERVICES DIRECTORATE                                                                       ,Staff Payment,BA0000312351,6.60,
BEIS,The Insolvency Service,12/03/2018,Office Supplies and Services,BUSINESS SERVICES DIRECTORATE                                                                       ,Staff Payment,BA0000312351,13.08,
BEIS,The Insolvency Service,12/03/2018,Office Supplies and Services,BUSINESS SERVICES DIRECTORATE                                                                       ,Staff Payment,BA0000312351,14.05,
BEIS,The Insolvency Service,12/03/2018,Office Supplies and Services,BUSINESS SERVICES DIRECTORATE                                                                       ,Staff Payment,BA0000312348,30.00,
BEIS,The Insolvency Service,12/03/2018,Office Supplies and Services,BUSINESS SERVICES DIRECTORATE                                                                       ,Staff Payment,BA0000312348,40.00,
BEIS,The Insolvency Service,12/03/2018,Office Supplies and Services,CRIMINAL ENFORCEMENT                                                                                ,Staff Payment,BA0000312351,1.66,
BEIS,The Insolvency Service,12/03/2018,Office Supplies and Services,CRIMINAL ENFORCEMENT                                                                                ,Staff Payment,BA0000312348,2.08,
BEIS,The Insolvency Service,12/03/2018,Office Supplies and Services,CRIMINAL ENFORCEMENT                                                                                ,Staff Payment,BA0000312348,7.25,
BEIS,The Insolvency Service,12/03/2018,Office Supplies and Services,INFORMATION TECHNOLOGY                                                                              ,Staff Payment,BA0000312350,5.00,
BEIS,The Insolvency Service,12/03/2018,Office Supplies and Services,INFORMATION TECHNOLOGY                                                                              ,Staff Payment,BA0000312350,5.00,
BEIS,The Insolvency Service,12/03/2018,Postage,BUSINESS SERVICES DIRECTORATE                                                                       ,NEOPOST LTD - FRANKING TOP UPS,BA0000312330,"1,000.00",
BEIS,The Insolvency Service,12/03/2018,Postage,OFFICIAL RECEIVER SERVICES                                                                          ,NEOPOST LTD - FRANKING TOP UPS,BA0000312330,500.00,
BEIS,The Insolvency Service,12/03/2018,Postage,OFFICIAL RECEIVER SERVICES                                                                          ,NEOPOST LTD - FRANKING TOP UPS,BA0000312330,500.00,
BEIS,The Insolvency Service,12/03/2018,Postage,OFFICIAL RECEIVER SERVICES                                                                          ,NEOPOST LTD - FRANKING TOP UPS,BA0000312330,500.00,
BEIS,The Insolvency Service,12/03/2018,Postage,OFFICIAL RECEIVER SERVICES                                                                          ,NEOPOST LTD - FRANKING TOP UPS,BA0000312330,"5,000.00",
BEIS,The Insolvency Service,12/03/2018,Postage,OFFICIAL RECEIVER SERVICES                                                                          ,ROYAL MAIL GROUP LTD - RESPONSE SERVICES)                   ,BA0000312346,385.86,243170002
BEIS,The Insolvency Service,12/03/2018,Telecoms,BUSINESS SERVICES DIRECTORATE                                                                       ,BT TELEPHONE PAYMENT CENTRE,BA0000312344,62.39,245719348
BEIS,The Insolvency Service,12/03/2018,Telecoms,BUSINESS SERVICES DIRECTORATE                                                                       ,BT TELEPHONE PAYMENT CENTRE,BA0000312344,"1,043.82",245719348
BEIS,The Insolvency Service,12/03/2018,Telecoms,BUSINESS SERVICES DIRECTORATE                                                                       ,BT TELEPHONE PAYMENT CENTRE,BA0000312344,"2,613.89",245719348
BEIS,The Insolvency Service,12/03/2018,Telecoms,FINANCE AND COMMERCIAL                                                                              ,BT TELEPHONE PAYMENT CENTRE,BA0000312344,222.59,245719348
BEIS,The Insolvency Service,12/03/2018,Telecoms,FINANCE AND COMMERCIAL                                                                              ,BT TELEPHONE PAYMENT CENTRE,BA0000312344,"2,419.74",245719348
BEIS,The Insolvency Service,12/03/2018,Telecoms,INFORMATION TECHNOLOGY                                                                              ,BT TELEPHONE PAYMENT CENTRE,BA0000312344,88.56,245719348
BEIS,The Insolvency Service,12/03/2018,Telecoms,INFORMATION TECHNOLOGY                                                                              ,BT TELEPHONE PAYMENT CENTRE,BA0000312344,"1,745.17",245719348
BEIS,The Insolvency Service,12/03/2018,Telecoms,INFORMATION TECHNOLOGY                                                                              ,VODAFONE - CABLE & WIRELESS COMMUNICATIONS,BA0000312332,"4,540.76",569953277
BEIS,The Insolvency Service,12/03/2018,Telecoms,INVESTIGATIONS & ENFORCEMENT                                                                        ,BT TELEPHONE PAYMENT CENTRE,BA0000312344,89.64,245719348
BEIS,The Insolvency Service,12/03/2018,Telecoms,OFFICIAL RECEIVER SERVICES                                                                          ,BT TELEPHONE PAYMENT CENTRE,BA0000312344,518.51,245719348
BEIS,The Insolvency Service,12/03/2018,Telecoms,OFFICIAL RECEIVER SERVICES                                                                          ,BT TELEPHONE PAYMENT CENTRE,BA0000312344,532.20,245719348
BEIS,The Insolvency Service,12/03/2018,Telecoms,OFFICIAL RECEIVER SERVICES                                                                          ,BT TELEPHONE PAYMENT CENTRE,BA0000312344,671.52,245719348
BEIS,The Insolvency Service,12/03/2018,Telecoms,OFFICIAL RECEIVER SERVICES                                                                          ,BT TELEPHONE PAYMENT CENTRE,BA0000312344,816.84,245719348
BEIS,The Insolvency Service,12/03/2018,Telecoms,OFFICIAL RECEIVER SERVICES                                                                          ,BT TELEPHONE PAYMENT CENTRE,BA0000312344,893.68,245719348
BEIS,The Insolvency Service,12/03/2018,Telecoms,OFFICIAL RECEIVER SERVICES                                                                          ,BT TELEPHONE PAYMENT CENTRE,BA0000312344,963.62,245719348
BEIS,The Insolvency Service,12/03/2018,Telecoms,OFFICIAL RECEIVER SERVICES                                                                          ,BT TELEPHONE PAYMENT CENTRE,BA0000312344,"1,003.50",245719348
BEIS,The Insolvency Service,12/03/2018,Telecoms,OFFICIAL RECEIVER SERVICES                                                                          ,BT TELEPHONE PAYMENT CENTRE,BA0000312344,"1,182.30",245719348
BEIS,The Insolvency Service,12/03/2018,Telecoms,OFFICIAL RECEIVER SERVICES                                                                          ,BT TELEPHONE PAYMENT CENTRE,BA0000312344,"1,191.01",245719348
BEIS,The Insolvency Service,12/03/2018,Telecoms,OFFICIAL RECEIVER SERVICES                                                                          ,BT TELEPHONE PAYMENT CENTRE,BA0000312344,"1,414.81",245719348
BEIS,The Insolvency Service,12/03/2018,Telecoms,OFFICIAL RECEIVER SERVICES                                                                          ,BT TELEPHONE PAYMENT CENTRE,BA0000312344,"1,521.30",245719348
BEIS,The Insolvency Service,12/03/2018,Telecoms,OFFICIAL RECEIVER SERVICES                                                                          ,BT TELEPHONE PAYMENT CENTRE,BA0000312344,"1,652.80",245719348
BEIS,The Insolvency Service,12/03/2018,Telecoms,OFFICIAL RECEIVER SERVICES                                                                          ,BT TELEPHONE PAYMENT CENTRE,BA0000312344,"3,468.70",245719348
BEIS,The Insolvency Service,12/03/2018,Telecoms,OFFICIAL RECEIVER SERVICES                                                                          ,BT TELEPHONE PAYMENT CENTRE,BA0000312344,"3,791.94",245719348
BEIS,The Insolvency Service,12/03/2018,Telecoms,OFFICIAL RECEIVER SERVICES                                                                          ,BT TELEPHONE PAYMENT CENTRE,BA0000312344,"4,314.96",245719348
BEIS,The Insolvency Service,12/03/2018,Telecoms,OFFICIAL RECEIVER SERVICES                                                                          ,BT TELEPHONE PAYMENT CENTRE,BA0000312344,"5,619.05",245719348
BEIS,The Insolvency Service,12/03/2018,Training Costs,BUSINESS SERVICES DIRECTORATE                                                                       ,GOVNET COMMUNICATIONS,BA0000312331,445.00,686277974
BEIS,The Insolvency Service,12/03/2018,Training Costs,PEOPLE & CAPABILITY                                                                                 ,THE WHITEHALL & INDUSTRY GROUP,BA0000312337,"4,950.00",667832004
BEIS,The Insolvency Service,12/03/2018,Training Costs,PEOPLE & CAPABILITY                                                                                 ,TMS DEVELOPMENT INTERNATIONAL LTD,BA0000312357,35.00,551650063
BEIS,The Insolvency Service,12/03/2018,Training Costs,PROJECTS                                                                                            ,Agilisys Ltd                                                ,BA0000312342,"39,200.00",791711713
BEIS,The Insolvency Service,12/03/2018,Translation Costs,CRIMINAL ENFORCEMENT                                                                                ,"Mendip Media Group Ltd (now trading as ""Appen"") - (transcri)",BA0000312338,64.01,609546425
BEIS,The Insolvency Service,12/03/2018,Travel and Subsistence,BUSINESS SERVICES DIRECTORATE                                                                       ,Staff Payment,BA0000312348,12.00,
BEIS,The Insolvency Service,12/03/2018,Travel and Subsistence,BUSINESS SERVICES DIRECTORATE                                                                       ,Staff Payment,BA0000312351,40.05,
BEIS,The Insolvency Service,12/03/2018,Travel and Subsistence,BUSINESS SERVICES DIRECTORATE                                                                       ,Staff Payment,BA0000312348,10.20,
BEIS,The Insolvency Service,12/03/2018,Travel and Subsistence,BUSINESS SERVICES DIRECTORATE                                                                       ,Staff Payment,BA0000312350,5.00,
BEIS,The Insolvency Service,12/03/2018,Travel and Subsistence,BUSINESS SERVICES DIRECTORATE                                                                       ,Staff Payment,BA0000312350,15.00,
BEIS,The Insolvency Service,12/03/2018,Travel and Subsistence,BUSINESS SERVICES DIRECTORATE                                                                       ,Staff Payment,BA0000312348,3.35,
BEIS,The Insolvency Service,12/03/2018,Travel and Subsistence,BUSINESS SERVICES DIRECTORATE                                                                       ,Staff Payment,BA0000312348,3.45,
BEIS,The Insolvency Service,12/03/2018,Travel and Subsistence,BUSINESS SERVICES DIRECTORATE                                                                       ,Staff Payment,BA0000312348,3.65,
BEIS,The Insolvency Service,12/03/2018,Travel and Subsistence,BUSINESS SERVICES DIRECTORATE                                                                       ,Staff Payment,BA0000312348,4.04,
BEIS,The Insolvency Service,12/03/2018,Travel and Subsistence,BUSINESS SERVICES DIRECTORATE                                                                       ,Staff Payment,BA0000312348,4.15,
BEIS,The Insolvency Service,12/03/2018,Travel and Subsistence,BUSINESS SERVICES DIRECTORATE                                                                       ,Staff Payment,BA0000312348,5.00,
BEIS,The Insolvency Service,12/03/2018,Travel and Subsistence,BUSINESS SERVICES DIRECTORATE                                                                       ,Staff Payment,BA0000312348,8.50,
BEIS,The Insolvency Service,12/03/2018,Travel and Subsistence,BUSINESS SERVICES DIRECTORATE                                                                       ,Staff Payment,BA0000312348,15.00,
BEIS,The Insolvency Service,12/03/2018,Travel and Subsistence,BUSINESS SERVICES DIRECTORATE                                                                       ,Staff Payment,BA0000312348,5.29,
BEIS,The Insolvency Service,12/03/2018,Travel and Subsistence,BUSINESS SERVICES DIRECTORATE                                                                       ,Staff Payment,BA0000312348,5.59,
BEIS,The Insolvency Service,12/03/2018,Travel and Subsistence,BUSINESS SERVICES DIRECTORATE                                                                       ,Staff Payment,BA0000312348,3.00,
BEIS,The Insolvency Service,12/03/2018,Travel and Subsistence,BUSINESS SERVICES DIRECTORATE                                                                       ,Staff Payment,BA0000312348,5.00,
BEIS,The Insolvency Service,12/03/2018,Travel and Subsistence,BUSINESS SERVICES DIRECTORATE                                                                       ,Staff Payment,BA0000312348,15.00,
BEIS,The Insolvency Service,12/03/2018,Travel and Subsistence,BUSINESS SERVICES DIRECTORATE                                                                       ,Staff Payment,BA0000312348,108.60,
BEIS,The Insolvency Service,12/03/2018,Travel and Subsistence,BUSINESS SERVICES DIRECTORATE                                                                       ,Staff Payment,BA0000312348,3.50,
BEIS,The Insolvency Service,12/03/2018,Travel and Subsistence,BUSINESS SERVICES DIRECTORATE                                                                       ,Staff Payment,BA0000312348,5.00,
BEIS,The Insolvency Service,12/03/2018,Travel and Subsistence,BUSINESS SERVICES DIRECTORATE                                                                       ,Staff Payment,BA0000312348,15.00,
BEIS,The Insolvency Service,12/03/2018,Travel and Subsistence,CRIMINAL ENFORCEMENT                                                                                ,Staff Payment,BA0000312351,3.00,
BEIS,The Insolvency Service,12/03/2018,Travel and Subsistence,CRIMINAL ENFORCEMENT                                                                                ,Staff Payment,BA0000312351,5.00,
BEIS,The Insolvency Service,12/03/2018,Travel and Subsistence,CRIMINAL ENFORCEMENT                                                                                ,Staff Payment,BA0000312351,62.55,
BEIS,The Insolvency Service,12/03/2018,Travel and Subsistence,CRIMINAL ENFORCEMENT                                                                                ,Staff Payment,BA0000312351,121.50,
BEIS,The Insolvency Service,12/03/2018,Travel and Subsistence,CRIMINAL ENFORCEMENT                                                                                ,Staff Payment,BA0000312351,5.00,
BEIS,The Insolvency Service,12/03/2018,Travel and Subsistence,CRIMINAL ENFORCEMENT                                                                                ,Staff Payment,BA0000312351,5.90,
BEIS,The Insolvency Service,12/03/2018,Travel and Subsistence,CRIMINAL ENFORCEMENT                                                                                ,Staff Payment,BA0000312351,35.10,
BEIS,The Insolvency Service,12/03/2018,Travel and Subsistence,CRIMINAL ENFORCEMENT                                                                                ,Staff Payment,BA0000312351,37.80,
BEIS,The Insolvency Service,12/03/2018,Travel and Subsistence,CRIMINAL ENFORCEMENT                                                                                ,Staff Payment,BA0000312351,49.50,
BEIS,The Insolvency Service,12/03/2018,Travel and Subsistence,CRIMINAL ENFORCEMENT                                                                                ,Staff Payment,BA0000312351,89.10,
BEIS,The Insolvency Service,12/03/2018,Travel and Subsistence,CRIMINAL ENFORCEMENT                                                                                ,Staff Payment,BA0000312348,9.00,
BEIS,The Insolvency Service,12/03/2018,Travel and Subsistence,CRIMINAL ENFORCEMENT                                                                                ,Staff Payment,BA0000312348,10.35,
BEIS,The Insolvency Service,12/03/2018,Travel and Subsistence,CRIMINAL ENFORCEMENT                                                                                ,Staff Payment,BA0000312348,16.00,
BEIS,The Insolvency Service,12/03/2018,Travel and Subsistence,CRIMINAL ENFORCEMENT                                                                                ,Staff Payment,BA0000312348,41.01,
BEIS,The Insolvency Service,12/03/2018,Travel and Subsistence,CRIMINAL ENFORCEMENT                                                                                ,Staff Payment,BA0000312348,49.05,
BEIS,The Insolvency Service,12/03/2018,Travel and Subsistence,CRIMINAL ENFORCEMENT                                                                                ,Staff Payment,BA0000312348,71.50,
BEIS,The Insolvency Service,12/03/2018,Travel and Subsistence,CRIMINAL ENFORCEMENT                                                                                ,Staff Payment,BA0000312348,4.70,
BEIS,The Insolvency Service,12/03/2018,Travel and Subsistence,CRIMINAL ENFORCEMENT                                                                                ,Staff Payment,BA0000312348,20.00,
BEIS,The Insolvency Service,12/03/2018,Travel and Subsistence,CRIMINAL ENFORCEMENT                                                                                ,Staff Payment,BA0000312350,13.40,
BEIS,The Insolvency Service,12/03/2018,Travel and Subsistence,CRIMINAL ENFORCEMENT                                                                                ,Staff Payment,BA0000312350,16.50,
BEIS,The Insolvency Service,12/03/2018,Travel and Subsistence,CRIMINAL ENFORCEMENT                                                                                ,Staff Payment,BA0000312350,18.90,
BEIS,The Insolvency Service,12/03/2018,Travel and Subsistence,CRIMINAL ENFORCEMENT                                                                                ,Staff Payment,BA0000312350,29.70,
BEIS,The Insolvency Service,12/03/2018,Travel and Subsistence,CRIMINAL ENFORCEMENT                                                                                ,Staff Payment,BA0000312351,5.90,
BEIS,The Insolvency Service,12/03/2018,Travel and Subsistence,CRIMINAL ENFORCEMENT                                                                                ,Staff Payment,BA0000312351,11.04,
BEIS,The Insolvency Service,12/03/2018,Travel and Subsistence,CRIMINAL ENFORCEMENT                                                                                ,Staff Payment,BA0000312351,24.00,
BEIS,The Insolvency Service,12/03/2018,Travel and Subsistence,CRIMINAL ENFORCEMENT                                                                                ,Staff Payment,BA0000312351,99.45,
BEIS,The Insolvency Service,12/03/2018,Travel and Subsistence,CRIMINAL ENFORCEMENT                                                                                ,Staff Payment,BA0000312351,127.35,
BEIS,The Insolvency Service,12/03/2018,Travel and Subsistence,CRIMINAL ENFORCEMENT                                                                                ,Staff Payment,BA0000312350,0.50,
BEIS,The Insolvency Service,12/03/2018,Travel and Subsistence,CRIMINAL ENFORCEMENT                                                                                ,Staff Payment,BA0000312350,4.05,
BEIS,The Insolvency Service,12/03/2018,Travel and Subsistence,CRIMINAL ENFORCEMENT                                                                                ,Staff Payment,BA0000312350,5.40,
BEIS,The Insolvency Service,12/03/2018,Travel and Subsistence,CRIMINAL ENFORCEMENT                                                                                ,Staff Payment,BA0000312350,46.00,
BEIS,The Insolvency Service,12/03/2018,Travel and Subsistence,CRIMINAL ENFORCEMENT                                                                                ,Staff Payment,BA0000312351,5.00,
BEIS,The Insolvency Service,12/03/2018,Travel and Subsistence,CRIMINAL ENFORCEMENT                                                                                ,Staff Payment,BA0000312351,16.20,
BEIS,The Insolvency Service,12/03/2018,Travel and Subsistence,CRIMINAL ENFORCEMENT                                                                                ,Staff Payment,BA0000312351,58.50,
BEIS,The Insolvency Service,12/03/2018,Travel and Subsistence,CRIMINAL ENFORCEMENT                                                                                ,Staff Payment,BA0000312351,104.40,
BEIS,The Insolvency Service,12/03/2018,Travel and Subsistence,CRIMINAL ENFORCEMENT                                                                                ,Staff Payment,BA0000312348,5.00,
BEIS,The Insolvency Service,12/03/2018,Travel and Subsistence,CRIMINAL ENFORCEMENT                                                                                ,Staff Payment,BA0000312348,3.00,
BEIS,The Insolvency Service,12/03/2018,Travel and Subsistence,CRIMINAL ENFORCEMENT                                                                                ,Staff Payment,BA0000312348,3.00,
BEIS,The Insolvency Service,12/03/2018,Travel and Subsistence,CRIMINAL ENFORCEMENT                                                                                ,Staff Payment,BA0000312348,5.00,
BEIS,The Insolvency Service,12/03/2018,Travel and Subsistence,CRIMINAL ENFORCEMENT                                                                                ,Staff Payment,BA0000312348,11.98,
BEIS,The Insolvency Service,12/03/2018,Travel and Subsistence,CRIMINAL ENFORCEMENT                                                                                ,Staff Payment,BA0000312348,16.00,
BEIS,The Insolvency Service,12/03/2018,Travel and Subsistence,CRIMINAL ENFORCEMENT                                                                                ,Staff Payment,BA0000312348,64.80,
BEIS,The Insolvency Service,12/03/2018,Travel and Subsistence,CRIMINAL ENFORCEMENT                                                                                ,Staff Payment,BA0000312348,65.70,
BEIS,The Insolvency Service,12/03/2018,Travel and Subsistence,CRIMINAL ENFORCEMENT                                                                                ,Staff Payment,BA0000312348,93.60,
BEIS,The Insolvency Service,12/03/2018,Travel and Subsistence,CUSTOMER AND COMMUNICATIONS                                                                         ,Staff Payment,BA0000312348,3.05,
BEIS,The Insolvency Service,12/03/2018,Travel and Subsistence,CUSTOMER AND COMMUNICATIONS                                                                         ,Staff Payment,BA0000312348,5.00,
BEIS,The Insolvency Service,12/03/2018,Travel and Subsistence,CUSTOMER AND COMMUNICATIONS                                                                         ,Staff Payment,BA0000312348,7.00,
BEIS,The Insolvency Service,12/03/2018,Travel and Subsistence,CUSTOMER AND COMMUNICATIONS                                                                         ,Staff Payment,BA0000312348,7.80,
BEIS,The Insolvency Service,12/03/2018,Travel and Subsistence,CUSTOMER AND COMMUNICATIONS                                                                         ,Staff Payment,BA0000312348,14.70,
BEIS,The Insolvency Service,12/03/2018,Travel and Subsistence,EXTERNAL AFFAIRS                                                                                    ,Staff Payment,BA0000312348,3.25,
BEIS,The Insolvency Service,12/03/2018,Travel and Subsistence,EXTERNAL AFFAIRS                                                                                    ,Staff Payment,BA0000312348,4.49,
BEIS,The Insolvency Service,12/03/2018,Travel and Subsistence,EXTERNAL AFFAIRS                                                                                    ,Staff Payment,BA0000312348,5.00,
BEIS,The Insolvency Service,12/03/2018,Travel and Subsistence,EXTERNAL AFFAIRS                                                                                    ,Staff Payment,BA0000312348,11.65,
BEIS,The Insolvency Service,12/03/2018,Travel and Subsistence,EXTERNAL AFFAIRS                                                                                    ,Staff Payment,BA0000312348,12.05,
BEIS,The Insolvency Service,12/03/2018,Travel and Subsistence,EXTERNAL AFFAIRS                                                                                    ,Staff Payment,BA0000312348,5.00,
BEIS,The Insolvency Service,12/03/2018,Travel and Subsistence,EXTERNAL AFFAIRS                                                                                    ,Staff Payment,BA0000312348,10.50,
BEIS,The Insolvency Service,12/03/2018,Travel and Subsistence,EXTERNAL AFFAIRS                                                                                    ,Staff Payment,BA0000312348,15.00,
BEIS,The Insolvency Service,12/03/2018,Travel and Subsistence,FINANCE AND COMMERCIAL,Staff Payment,BA0000312351,7.40,
BEIS,The Insolvency Service,12/03/2018,Travel and Subsistence,FINANCE AND COMMERCIAL,Staff Payment,BA0000312351,7.10,
BEIS,The Insolvency Service,12/03/2018,Travel and Subsistence,FINANCE AND COMMERCIAL,Staff Payment,BA0000312351,4.75,
BEIS,The Insolvency Service,12/03/2018,Travel and Subsistence,FINANCE AND COMMERCIAL,Staff Payment,BA0000312351,3.00,
BEIS,The Insolvency Service,12/03/2018,Travel and Subsistence,FINANCE AND COMMERCIAL,Staff Payment,BA0000312351,3.65,
BEIS,The Insolvency Service,12/03/2018,Travel and Subsistence,FINANCE AND COMMERCIAL,Staff Payment,BA0000312351,5.00,
BEIS,The Insolvency Service,12/03/2018,Travel and Subsistence,FINANCE AND COMMERCIAL,Staff Payment,BA0000312351,7.50,
BEIS,The Insolvency Service,12/03/2018,Travel and Subsistence,FINANCE AND COMMERCIAL,Staff Payment,BA0000312351,11.00,
BEIS,The Insolvency Service,12/03/2018,Travel and Subsistence,FINANCE AND COMMERCIAL,Staff Payment,BA0000312351,14.70,
BEIS,The Insolvency Service,12/03/2018,Travel and Subsistence,FINANCE AND COMMERCIAL,Staff Payment,BA0000312351,15.00,
BEIS,The Insolvency Service,12/03/2018,Travel and Subsistence,INFORMATION TECHNOLOGY                                                                              ,Staff Payment,BA0000312350,5.00,
BEIS,The Insolvency Service,12/03/2018,Travel and Subsistence,INFORMATION TECHNOLOGY                                                                              ,Staff Payment,BA0000312350,5.00,
BEIS,The Insolvency Service,12/03/2018,Travel and Subsistence,INFORMATION TECHNOLOGY                                                                              ,Staff Payment,BA0000312350,15.00,
BEIS,The Insolvency Service,12/03/2018,Travel and Subsistence,INFORMATION TECHNOLOGY                                                                              ,Staff Payment,BA0000312351,4.73,
BEIS,The Insolvency Service,12/03/2018,Travel and Subsistence,INFORMATION TECHNOLOGY                                                                              ,Staff Payment,BA0000312351,4.80,
BEIS,The Insolvency Service,12/03/2018,Travel and Subsistence,INFORMATION TECHNOLOGY                                                                              ,Staff Payment,BA0000312351,4.84,
BEIS,The Insolvency Service,12/03/2018,Travel and Subsistence,INFORMATION TECHNOLOGY                                                                              ,Staff Payment,BA0000312351,5.00,
BEIS,The Insolvency Service,12/03/2018,Travel and Subsistence,INFORMATION TECHNOLOGY                                                                              ,Staff Payment,BA0000312351,10.70,
BEIS,The Insolvency Service,12/03/2018,Travel and Subsistence,INFORMATION TECHNOLOGY                                                                              ,Staff Payment,BA0000312350,5.00,
BEIS,The Insolvency Service,12/03/2018,Travel and Subsistence,INFORMATION TECHNOLOGY                                                                              ,Staff Payment,BA0000312350,15.00,
BEIS,The Insolvency Service,12/03/2018,Travel and Subsistence,INVESTIGATIONS & ENFORCEMENT                                                                        ,Staff Payment,BA0000312348,4.70,
BEIS,The Insolvency Service,12/03/2018,Travel and Subsistence,INVESTIGATIONS & ENFORCEMENT                                                                        ,Staff Payment,BA0000312348,6.80,
BEIS,The Insolvency Service,12/03/2018,Travel and Subsistence,INVESTIGATIONS & ENFORCEMENT                                                                        ,Staff Payment,BA0000312348,5.00,
BEIS,The Insolvency Service,12/03/2018,Travel and Subsistence,INVESTIGATIONS & ENFORCEMENT                                                                        ,Staff Payment,BA0000312348,5.00,
BEIS,The Insolvency Service,12/03/2018,Travel and Subsistence,INVESTIGATIONS & ENFORCEMENT                                                                        ,Staff Payment,BA0000312348,5.00,
BEIS,The Insolvency Service,12/03/2018,Travel and Subsistence,INVESTIGATIONS & ENFORCEMENT                                                                        ,Staff Payment,BA0000312348,6.20,
BEIS,The Insolvency Service,12/03/2018,Travel and Subsistence,INVESTIGATIONS & ENFORCEMENT                                                                        ,Staff Payment,BA0000312348,1.32,
BEIS,The Insolvency Service,12/03/2018,Travel and Subsistence,INVESTIGATIONS & ENFORCEMENT                                                                        ,Staff Payment,BA0000312348,2.30,
BEIS,The Insolvency Service,12/03/2018,Travel and Subsistence,INVESTIGATIONS & ENFORCEMENT                                                                        ,Staff Payment,BA0000312348,3.20,
BEIS,The Insolvency Service,12/03/2018,Travel and Subsistence,INVESTIGATIONS & ENFORCEMENT                                                                        ,Staff Payment,BA0000312348,3.99,
BEIS,The Insolvency Service,12/03/2018,Travel and Subsistence,INVESTIGATIONS & ENFORCEMENT                                                                        ,Staff Payment,BA0000312348,4.10,
BEIS,The Insolvency Service,12/03/2018,Travel and Subsistence,INVESTIGATIONS & ENFORCEMENT                                                                        ,Staff Payment,BA0000312348,4.55,
BEIS,The Insolvency Service,12/03/2018,Travel and Subsistence,INVESTIGATIONS & ENFORCEMENT                                                                        ,Staff Payment,BA0000312348,4.95,
BEIS,The Insolvency Service,12/03/2018,Travel and Subsistence,INVESTIGATIONS & ENFORCEMENT                                                                        ,Staff Payment,BA0000312348,5.00,
BEIS,The Insolvency Service,12/03/2018,Travel and Subsistence,INVESTIGATIONS & ENFORCEMENT                                                                        ,Staff Payment,BA0000312348,7.05,
BEIS,The Insolvency Service,12/03/2018,Travel and Subsistence,INVESTIGATIONS & ENFORCEMENT                                                                        ,Staff Payment,BA0000312348,15.00,
BEIS,The Insolvency Service,12/03/2018,Travel and Subsistence,INVESTIGATIONS & ENFORCEMENT                                                                        ,Staff Payment,BA0000312348,5.00,
BEIS,The Insolvency Service,12/03/2018,Travel and Subsistence,OFFICIAL RECEIVER SERVICES                                                                          ,Staff Payment,BA0000312348,1.60,
BEIS,The Insolvency Service,12/03/2018,Travel and Subsistence,OFFICIAL RECEIVER SERVICES                                                                          ,Staff Payment,BA0000312348,4.00,
BEIS,The Insolvency Service,12/03/2018,Travel and Subsistence,OFFICIAL RECEIVER SERVICES                                                                          ,Staff Payment,BA0000312348,10.00,
BEIS,The Insolvency Service,12/03/2018,Travel and Subsistence,OFFICIAL RECEIVER SERVICES                                                                          ,Staff Payment,BA0000312348,12.00,
BEIS,The Insolvency Service,12/03/2018,Travel and Subsistence,OFFICIAL RECEIVER SERVICES                                                                          ,Staff Payment,BA0000312348,4.00,
BEIS,The Insolvency Service,12/03/2018,Travel and Subsistence,OFFICIAL RECEIVER SERVICES                                                                          ,Staff Payment,BA0000312351,18.45,
BEIS,The Insolvency Service,12/03/2018,Travel and Subsistence,OFFICIAL RECEIVER SERVICES                                                                          ,Staff Payment,BA0000312351,8.50,
BEIS,The Insolvency Service,12/03/2018,Travel and Subsistence,OFFICIAL RECEIVER SERVICES                                                                          ,Staff Payment,BA0000312348,1.60,
BEIS,The Insolvency Service,12/03/2018,Travel and Subsistence,OFFICIAL RECEIVER SERVICES                                                                          ,Staff Payment,BA0000312348,9.90,
BEIS,The Insolvency Service,12/03/2018,Travel and Subsistence,OFFICIAL RECEIVER SERVICES                                                                          ,Staff Payment,BA0000312348,10.35,
BEIS,The Insolvency Service,12/03/2018,Travel and Subsistence,OFFICIAL RECEIVER SERVICES                                                                          ,Staff Payment,BA0000312348,24.30,
BEIS,The Insolvency Service,12/03/2018,Travel and Subsistence,OFFICIAL RECEIVER SERVICES                                                                          ,Staff Payment,BA0000312351,8.10,
BEIS,The Insolvency Service,12/03/2018,Travel and Subsistence,OFFICIAL RECEIVER SERVICES                                                                          ,Staff Payment,BA0000312351,12.00,
BEIS,The Insolvency Service,12/03/2018,Travel and Subsistence,OFFICIAL RECEIVER SERVICES                                                                          ,Staff Payment,BA0000312351,5.00,
BEIS,The Insolvency Service,12/03/2018,Travel and Subsistence,OFFICIAL RECEIVER SERVICES                                                                          ,Staff Payment,BA0000312351,15.00,
BEIS,The Insolvency Service,12/03/2018,Travel and Subsistence,OFFICIAL RECEIVER SERVICES                                                                          ,Staff Payment,BA0000312351,4.90,
BEIS,The Insolvency Service,12/03/2018,Travel and Subsistence,OFFICIAL RECEIVER SERVICES                                                                          ,Staff Payment,BA0000312351,5.00,
BEIS,The Insolvency Service,12/03/2018,Travel and Subsistence,OFFICIAL RECEIVER SERVICES                                                                          ,Staff Payment,BA0000312351,12.60,
BEIS,The Insolvency Service,12/03/2018,Travel and Subsistence,OFFICIAL RECEIVER SERVICES                                                                          ,Staff Payment,BA0000312351,15.00,
BEIS,The Insolvency Service,12/03/2018,Travel and Subsistence,OFFICIAL RECEIVER SERVICES                                                                          ,Staff Payment,BA0000312351,3.00,
BEIS,The Insolvency Service,12/03/2018,Travel and Subsistence,OFFICIAL RECEIVER SERVICES                                                                          ,Staff Payment,BA0000312351,4.86,
BEIS,The Insolvency Service,12/03/2018,Travel and Subsistence,OFFICIAL RECEIVER SERVICES                                                                          ,Staff Payment,BA0000312351,5.00,
BEIS,The Insolvency Service,12/03/2018,Travel and Subsistence,OFFICIAL RECEIVER SERVICES                                                                          ,Staff Payment,BA0000312351,10.80,
BEIS,The Insolvency Service,12/03/2018,Travel and Subsistence,OFFICIAL RECEIVER SERVICES                                                                          ,Staff Payment,BA0000312351,2.20,
BEIS,The Insolvency Service,12/03/2018,Travel and Subsistence,OFFICIAL RECEIVER SERVICES                                                                          ,Staff Payment,BA0000312351,4.70,
BEIS,The Insolvency Service,12/03/2018,Travel and Subsistence,OFFICIAL RECEIVER SERVICES                                                                          ,Staff Payment,BA0000312351,4.80,
BEIS,The Insolvency Service,12/03/2018,Travel and Subsistence,OFFICIAL RECEIVER SERVICES                                                                          ,Staff Payment,BA0000312351,5.00,
BEIS,The Insolvency Service,12/03/2018,Travel and Subsistence,OFFICIAL RECEIVER SERVICES                                                                          ,Staff Payment,BA0000312351,5.00,
BEIS,The Insolvency Service,12/03/2018,Travel and Subsistence,OFFICIAL RECEIVER SERVICES                                                                          ,Staff Payment,BA0000312348,3.25,
BEIS,The Insolvency Service,12/03/2018,Travel and Subsistence,OFFICIAL RECEIVER SERVICES                                                                          ,Staff Payment,BA0000312348,5.00,
BEIS,The Insolvency Service,12/03/2018,Travel and Subsistence,OFFICIAL RECEIVER SERVICES                                                                          ,Staff Payment,BA0000312348,11.10,
BEIS,The Insolvency Service,12/03/2018,Travel and Subsistence,OFFICIAL RECEIVER SERVICES                                                                          ,Staff Payment,BA0000312348,14.00,
BEIS,The Insolvency Service,12/03/2018,Travel and Subsistence,OFFICIAL RECEIVER SERVICES                                                                          ,Staff Payment,BA0000312348,5.00,
BEIS,The Insolvency Service,12/03/2018,Travel and Subsistence,OFFICIAL RECEIVER SERVICES                                                                          ,Staff Payment,BA0000312348,3.00,
BEIS,The Insolvency Service,12/03/2018,Travel and Subsistence,OFFICIAL RECEIVER SERVICES                                                                          ,Staff Payment,BA0000312348,14.00,
BEIS,The Insolvency Service,12/03/2018,Travel and Subsistence,OFFICIAL RECEIVER SERVICES                                                                          ,Staff Payment,BA0000312348,1.80,
BEIS,The Insolvency Service,12/03/2018,Travel and Subsistence,OFFICIAL RECEIVER SERVICES                                                                          ,Staff Payment,BA0000312348,7.00,
BEIS,The Insolvency Service,12/03/2018,Travel and Subsistence,OFFICIAL RECEIVER SERVICES                                                                          ,Staff Payment,BA0000312348,83.25,
BEIS,The Insolvency Service,12/03/2018,Travel and Subsistence,OFFICIAL RECEIVER SERVICES                                                                          ,Staff Payment,BA0000312348,3.75,
BEIS,The Insolvency Service,12/03/2018,Travel and Subsistence,OFFICIAL RECEIVER SERVICES                                                                          ,Staff Payment,BA0000312348,4.28,
BEIS,The Insolvency Service,12/03/2018,Travel and Subsistence,OFFICIAL RECEIVER SERVICES                                                                          ,Staff Payment,BA0000312348,4.50,
BEIS,The Insolvency Service,12/03/2018,Travel and Subsistence,OFFICIAL RECEIVER SERVICES                                                                          ,Staff Payment,BA0000312348,12.50,
BEIS,The Insolvency Service,12/03/2018,Travel and Subsistence,OFFICIAL RECEIVER SERVICES                                                                          ,Staff Payment,BA0000312348,2.50,
BEIS,The Insolvency Service,12/03/2018,Travel and Subsistence,OFFICIAL RECEIVER SERVICES                                                                          ,Staff Payment,BA0000312348,4.78,
BEIS,The Insolvency Service,12/03/2018,Travel and Subsistence,OFFICIAL RECEIVER SERVICES                                                                          ,Staff Payment,BA0000312348,30.90,
BEIS,The Insolvency Service,12/03/2018,Travel and Subsistence,OFFICIAL RECEIVER SERVICES                                                                          ,Staff Payment,BA0000312348,4.36,
BEIS,The Insolvency Service,12/03/2018,Travel and Subsistence,OFFICIAL RECEIVER SERVICES                                                                          ,Staff Payment,BA0000312348,5.00,
BEIS,The Insolvency Service,12/03/2018,Travel and Subsistence,OFFICIAL RECEIVER SERVICES                                                                          ,Staff Payment,BA0000312348,14.50,
BEIS,The Insolvency Service,12/03/2018,Travel and Subsistence,OFFICIAL RECEIVER SERVICES                                                                          ,Staff Payment,BA0000312348,15.00,
BEIS,The Insolvency Service,12/03/2018,Travel and Subsistence,OFFICIAL RECEIVER SERVICES                                                                          ,Staff Payment,BA0000312348,19.00,
BEIS,The Insolvency Service,12/03/2018,Travel and Subsistence,OFFICIAL RECEIVER SERVICES                                                                          ,Staff Payment,BA0000312348,13.05,
BEIS,The Insolvency Service,12/03/2018,Travel and Subsistence,OFFICIAL RECEIVER SERVICES                                                                          ,Staff Payment,BA0000312348,8.10,
BEIS,The Insolvency Service,12/03/2018,Travel and Subsistence,OFFICIAL RECEIVER SERVICES                                                                          ,Staff Payment,BA0000312348,25.43,
BEIS,The Insolvency Service,12/03/2018,Travel and Subsistence,OFFICIAL RECEIVER SERVICES                                                                          ,Staff Payment,BA0000312348,2.40,
BEIS,The Insolvency Service,12/03/2018,Travel and Subsistence,OFFICIAL RECEIVER SERVICES                                                                          ,Staff Payment,BA0000312348,3.00,
BEIS,The Insolvency Service,12/03/2018,Travel and Subsistence,OFFICIAL RECEIVER SERVICES                                                                          ,Staff Payment,BA0000312348,5.00,
BEIS,The Insolvency Service,12/03/2018,Travel and Subsistence,OFFICIAL RECEIVER SERVICES                                                                          ,Staff Payment,BA0000312348,9.00,
BEIS,The Insolvency Service,12/03/2018,Travel and Subsistence,OFFICIAL RECEIVER SERVICES                                                                          ,Staff Payment,BA0000312348,9.50,
BEIS,The Insolvency Service,12/03/2018,Travel and Subsistence,OFFICIAL RECEIVER SERVICES                                                                          ,Staff Payment,BA0000312348,11.60,
BEIS,The Insolvency Service,12/03/2018,Travel and Subsistence,OFFICIAL RECEIVER SERVICES                                                                          ,Staff Payment,BA0000312348,3.30,
BEIS,The Insolvency Service,12/03/2018,Travel and Subsistence,OFFICIAL RECEIVER SERVICES                                                                          ,Staff Payment,BA0000312348,5.00,
BEIS,The Insolvency Service,12/03/2018,Travel and Subsistence,PEOPLE & CAPABILITY                                                                                 ,Staff Payment,BA0000312348,5.00,
BEIS,The Insolvency Service,12/03/2018,Travel and Subsistence,PEOPLE & CAPABILITY                                                                                 ,Staff Payment,BA0000312348,5.00,
BEIS,The Insolvency Service,12/03/2018,Travel and Subsistence,PEOPLE & CAPABILITY                                                                                 ,Staff Payment,BA0000312348,5.00,
BEIS,The Insolvency Service,12/03/2018,Travel and Subsistence,PEOPLE & CAPABILITY                                                                                 ,Staff Payment,BA0000312348,5.00,
BEIS,The Insolvency Service,12/03/2018,Travel and Subsistence,PEOPLE & CAPABILITY                                                                                 ,Staff Payment,BA0000312348,5.00,
BEIS,The Insolvency Service,12/03/2018,Travel and Subsistence,PEOPLE & CAPABILITY                                                                                 ,Staff Payment,BA0000312348,5.00,
BEIS,The Insolvency Service,12/03/2018,Travel and Subsistence,PEOPLE & CAPABILITY                                                                                 ,Staff Payment,BA0000312348,5.00,
BEIS,The Insolvency Service,13/03/2018,Investigation and Enforcement Costs,INVESTIGATIONS & ENFORCEMENT                                                                        ,18 RED LION COURT CHAMBERS                                  ,BA0000312384,408.00,766793665
BEIS,The Insolvency Service,13/03/2018,Investigation and Enforcement Costs,INVESTIGATIONS & ENFORCEMENT                                                                        ,18 RED LION COURT CHAMBERS                                  ,BA0000312386,384.00,766793665
BEIS,The Insolvency Service,13/03/2018,Investigation and Enforcement Costs,INVESTIGATIONS & ENFORCEMENT                                                                        ,4 King's Bench Walk                                         ,BA0000312388,353.88,
BEIS,The Insolvency Service,13/03/2018,Investigation and Enforcement Costs,INVESTIGATIONS & ENFORCEMENT                                                                        ,4 King's Bench Walk                                         ,BA0000312389,303.00,
BEIS,The Insolvency Service,13/03/2018,Investigation and Enforcement Costs,INVESTIGATIONS & ENFORCEMENT                                                                        ,4 King's Bench Walk                                         ,BA0000312390,955.98,
BEIS,The Insolvency Service,13/03/2018,Investigation and Enforcement Costs,INVESTIGATIONS & ENFORCEMENT                                                                        ,Citadel Chambers                                            ,BA0000312391,360.00,241217250
BEIS,The Insolvency Service,13/03/2018,Investigation and Enforcement Costs,INVESTIGATIONS & ENFORCEMENT                                                                        ,GOVERNMENT LEGAL DEPARTMENT                                 ,BA0000312371,"1,005.96",888823066
BEIS,The Insolvency Service,13/03/2018,Investigation and Enforcement Costs,INVESTIGATIONS & ENFORCEMENT                                                                        ,GOVERNMENT LEGAL DEPARTMENT                                 ,BA0000312373,"2,229.12",888823066
BEIS,The Insolvency Service,13/03/2018,Investigation and Enforcement Costs,INVESTIGATIONS & ENFORCEMENT                                                                        ,Trinity Barristers                                          ,BA0000312387,300.00,744811039
BEIS,The Insolvency Service,13/03/2018,Investigation and Enforcement Costs,CRIMINAL ENFORCEMENT                                                                                ,Birmingham Process Servers                                  ,BA0000312382,85.00,
BEIS,The Insolvency Service,13/03/2018,Employee Related Costs,PEOPLE & CAPABILITY                                                                                 ,BERR - DEPT. FOR BUSINESS ENTERPRISE & REGULATORY REFORM,BA0000312392,"67,585.95",
BEIS,The Insolvency Service,13/03/2018,Accommodation,ESTATES,GVA                                                         ,BA0000312394,"70,996.50",657719590
BEIS,The Insolvency Service,13/03/2018,Accommodation,OFFICIAL RECEIVER SERVICES                                                                          ,Staff Payment,BA0000312378,19.92,
BEIS,The Insolvency Service,13/03/2018,Agency Workers,PROJECTS                                                                                            ,Agilisys Ltd                                                ,BA0000312370,"135,420.00",791711713
BEIS,The Insolvency Service,13/03/2018,Computer and IT Systems,BUSINESS SERVICES DIRECTORATE                                                                       ,ATOS IT SERVICES UK LTD,BA0000312376,"33,351.73",232327983
BEIS,The Insolvency Service,13/03/2018,Computer and IT Systems,INFORMATION TECHNOLOGY                                                                              ,ATOS IT SERVICES UK LTD,BA0000312377,"31,211.54",232327983
BEIS,The Insolvency Service,13/03/2018,Computer and IT Systems,INFORMATION TECHNOLOGY                                                                              ,RJD Technology Limited                                      ,BA0000312374,"2,424.06",78572284
BEIS,The Insolvency Service,13/03/2018,Employee Related Costs,P&C - People Relations                                                                              ,HEALTH MANAGEMENT LTD,BA0000312380,"1,764.00",792250621
BEIS,The Insolvency Service,13/03/2018,Employee Related Costs,P&C - People Relations                                                                              ,HEALTH MANAGEMENT LTD,BA0000312381,"2,028.00",792250621
BEIS,The Insolvency Service,13/03/2018,Insolvency Case Related Costs,INVESTIGATIONS & ENFORCEMENT                                                                        ,Staff Payment,BA0000312395,7.00,
BEIS,The Insolvency Service,13/03/2018,Insolvency Case Related Costs,INVESTIGATIONS & ENFORCEMENT                                                                        ,Staff Payment,BA0000312395,7.00,
BEIS,The Insolvency Service,13/03/2018,Insolvency Case Related Costs,INVESTIGATIONS & ENFORCEMENT                                                                        ,Staff Payment,BA0000312395,7.00,
BEIS,The Insolvency Service,13/03/2018,Legal Costs,P&C - People Relations                                                                              ,GOVERNMENT LEGAL DEPARTMENT                                 ,BA0000312369,80.00,888823066
BEIS,The Insolvency Service,13/03/2018,Legal Costs,P&C - People Relations                                                                              ,GOVERNMENT LEGAL DEPARTMENT                                 ,BA0000312369,"1,780.70",888823066
BEIS,The Insolvency Service,13/03/2018,Office Supplies and Services,CRIMINAL ENFORCEMENT                                                                                ,Staff Payment,BA0000312395,2.40,
BEIS,The Insolvency Service,13/03/2018,Office Supplies and Services,CRIMINAL ENFORCEMENT                                                                                ,Staff Payment,BA0000312395,2.08,
BEIS,The Insolvency Service,13/03/2018,Office Supplies and Services,FINANCE AND COMMERCIAL                                                                              ,Staff Payment,BA0000312395,3.00,
BEIS,The Insolvency Service,13/03/2018,Office Supplies and Services,FINANCE AND COMMERCIAL                                                                              ,Staff Payment,BA0000312395,3.05,
BEIS,The Insolvency Service,13/03/2018,Office Supplies and Services,FINANCE AND COMMERCIAL                                                                              ,Staff Payment,BA0000312395,3.10,
BEIS,The Insolvency Service,13/03/2018,Office Supplies and Services,FINANCE AND COMMERCIAL                                                                              ,Staff Payment,BA0000312395,5.50,
BEIS,The Insolvency Service,13/03/2018,Office Supplies and Services,FINANCE AND COMMERCIAL                                                                              ,Staff Payment,BA0000312395,9.95,
BEIS,The Insolvency Service,13/03/2018,Office Supplies and Services,FINANCE AND COMMERCIAL                                                                              ,Staff Payment,BA0000312395,14.25,
BEIS,The Insolvency Service,13/03/2018,Office Supplies and Services,PEOPLE & CAPABILITY                                                                                 ,Staff Payment,BA0000312378,11.00,
BEIS,The Insolvency Service,13/03/2018,Office Supplies and Services,PEOPLE & CAPABILITY                                                                                 ,Staff Payment,BA0000312378,3.05,
BEIS,The Insolvency Service,13/03/2018,Postage,OFFICIAL RECEIVER SERVICES                                                                          ,ROYAL MAIL GROUP LTD - RESPONSE SERVICES)                   ,BA0000312385,24.45,243170002
BEIS,The Insolvency Service,13/03/2018,Postage,OFFICIAL RECEIVER SERVICES                                                                          ,ROYAL MAIL GROUP LTD - RESPONSE SERVICES)                   ,BA0000312385,467.62,243170002
BEIS,The Insolvency Service,13/03/2018,Telecoms,CRIMINAL ENFORCEMENT                                                                                ,Daisy Communications Ltd                                    ,BA0000312375,3.13,
BEIS,The Insolvency Service,13/03/2018,Training Costs,INFORMATION TECHNOLOGY                                                                              ,RJD Technology Limited                                      ,BA0000312372,"5,500.00",78572284
BEIS,The Insolvency Service,13/03/2018,Training Costs,P&C - People Relations                                                                              ,Staff Payment,BA0000312378,86.00,
BEIS,The Insolvency Service,13/03/2018,Training Costs,PEOPLE & CAPABILITY                                                                                 ,KORN FERRY HAY GROUP - CSL                                  ,BA0000312367,419.00,
BEIS,The Insolvency Service,13/03/2018,Training Costs,PEOPLE & CAPABILITY                                                                                 ,KORN FERRY HAY GROUP - CSL                                  ,BA0000312368,450.50,
BEIS,The Insolvency Service,13/03/2018,Training Costs,PROJECTS                                                                                            ,Castleton Software Solutions Ltd                            ,BA0000312379,900.00,813905437
BEIS,The Insolvency Service,13/03/2018,Travel and Subsistence,BUSINESS SERVICES DIRECTORATE                                                                       ,Staff Payment,BA0000312395,3.80,
BEIS,The Insolvency Service,13/03/2018,Travel and Subsistence,BUSINESS SERVICES DIRECTORATE                                                                       ,Staff Payment,BA0000312395,3.90,
BEIS,The Insolvency Service,13/03/2018,Travel and Subsistence,BUSINESS SERVICES DIRECTORATE                                                                       ,Staff Payment,BA0000312395,4.50,
BEIS,The Insolvency Service,13/03/2018,Travel and Subsistence,BUSINESS SERVICES DIRECTORATE                                                                       ,Staff Payment,BA0000312395,4.99,
BEIS,The Insolvency Service,13/03/2018,Travel and Subsistence,BUSINESS SERVICES DIRECTORATE                                                                       ,Staff Payment,BA0000312395,5.00,
BEIS,The Insolvency Service,13/03/2018,Travel and Subsistence,BUSINESS SERVICES DIRECTORATE                                                                       ,Staff Payment,BA0000312395,8.22,
BEIS,The Insolvency Service,13/03/2018,Travel and Subsistence,BUSINESS SERVICES DIRECTORATE                                                                       ,Staff Payment,BA0000312395,9.46,
BEIS,The Insolvency Service,13/03/2018,Travel and Subsistence,BUSINESS SERVICES DIRECTORATE                                                                       ,Staff Payment,BA0000312395,24.42,
BEIS,The Insolvency Service,13/03/2018,Travel and Subsistence,BUSINESS SERVICES DIRECTORATE                                                                       ,Staff Payment,BA0000312395,71.30,
BEIS,The Insolvency Service,13/03/2018,Travel and Subsistence,BUSINESS SERVICES DIRECTORATE                                                                       ,Staff Payment,BA0000312395,4.84,
BEIS,The Insolvency Service,13/03/2018,Travel and Subsistence,BUSINESS SERVICES DIRECTORATE                                                                       ,Staff Payment,BA0000312395,4.99,
BEIS,The Insolvency Service,13/03/2018,Travel and Subsistence,BUSINESS SERVICES DIRECTORATE                                                                       ,Staff Payment,BA0000312395,5.00,
BEIS,The Insolvency Service,13/03/2018,Travel and Subsistence,BUSINESS SERVICES DIRECTORATE                                                                       ,Staff Payment,BA0000312395,4.90,
BEIS,The Insolvency Service,13/03/2018,Travel and Subsistence,BUSINESS SERVICES DIRECTORATE                                                                       ,Staff Payment,BA0000312395,5.00,
BEIS,The Insolvency Service,13/03/2018,Travel and Subsistence,BUSINESS SERVICES DIRECTORATE                                                                       ,Staff Payment,BA0000312395,15.00,
BEIS,The Insolvency Service,13/03/2018,Travel and Subsistence,BUSINESS SERVICES DIRECTORATE                                                                       ,Staff Payment,BA0000312378,68.50,
BEIS,The Insolvency Service,13/03/2018,Travel and Subsistence,BUSINESS SERVICES DIRECTORATE                                                                       ,Staff Payment,BA0000312378,73.00,
BEIS,The Insolvency Service,13/03/2018,Travel and Subsistence,BUSINESS SERVICES DIRECTORATE                                                                       ,Staff Payment,BA0000312378,4.19,
BEIS,The Insolvency Service,13/03/2018,Travel and Subsistence,BUSINESS SERVICES DIRECTORATE                                                                       ,Staff Payment,BA0000312378,5.00,
BEIS,The Insolvency Service,13/03/2018,Travel and Subsistence,BUSINESS SERVICES DIRECTORATE                                                                       ,Staff Payment,BA0000312378,10.10,
BEIS,The Insolvency Service,13/03/2018,Travel and Subsistence,BUSINESS SERVICES DIRECTORATE                                                                       ,Staff Payment,BA0000312378,4.34,
BEIS,The Insolvency Service,13/03/2018,Travel and Subsistence,BUSINESS SERVICES DIRECTORATE                                                                       ,Staff Payment,BA0000312378,5.00,
BEIS,The Insolvency Service,13/03/2018,Travel and Subsistence,BUSINESS SERVICES DIRECTORATE                                                                       ,Staff Payment,BA0000312378,15.00,
BEIS,The Insolvency Service,13/03/2018,Travel and Subsistence,BUSINESS SERVICES DIRECTORATE                                                                       ,Staff Payment,BA0000312378,5.00,
BEIS,The Insolvency Service,13/03/2018,Travel and Subsistence,BUSINESS SERVICES DIRECTORATE                                                                       ,Staff Payment,BA0000312378,15.00,
BEIS,The Insolvency Service,13/03/2018,Travel and Subsistence,CHIEF EXECUTIVE DIVISION                                                                            ,Staff Payment,BA0000312378,3.60,
BEIS,The Insolvency Service,13/03/2018,Travel and Subsistence,CHIEF EXECUTIVE DIVISION                                                                            ,Staff Payment,BA0000312378,4.78,
BEIS,The Insolvency Service,13/03/2018,Travel and Subsistence,CHIEF EXECUTIVE DIVISION                                                                            ,Staff Payment,BA0000312378,4.80,
BEIS,The Insolvency Service,13/03/2018,Travel and Subsistence,CHIEF EXECUTIVE DIVISION                                                                            ,Staff Payment,BA0000312378,5.00,
BEIS,The Insolvency Service,13/03/2018,Travel and Subsistence,CHIEF EXECUTIVE DIVISION                                                                            ,Staff Payment,BA0000312378,7.60,
BEIS,The Insolvency Service,13/03/2018,Travel and Subsistence,CHIEF EXECUTIVE DIVISION                                                                            ,Staff Payment,BA0000312378,15.00,
BEIS,The Insolvency Service,13/03/2018,Travel and Subsistence,CRIMINAL ENFORCEMENT                                                                                ,Staff Payment,BA0000312395,2.70,
BEIS,The Insolvency Service,13/03/2018,Travel and Subsistence,CRIMINAL ENFORCEMENT                                                                                ,Staff Payment,BA0000312395,3.00,
BEIS,The Insolvency Service,13/03/2018,Travel and Subsistence,CRIMINAL ENFORCEMENT                                                                                ,Staff Payment,BA0000312395,3.20,
BEIS,The Insolvency Service,13/03/2018,Travel and Subsistence,CRIMINAL ENFORCEMENT                                                                                ,Staff Payment,BA0000312395,4.70,
BEIS,The Insolvency Service,13/03/2018,Travel and Subsistence,CRIMINAL ENFORCEMENT                                                                                ,Staff Payment,BA0000312395,4.70,
BEIS,The Insolvency Service,13/03/2018,Travel and Subsistence,CRIMINAL ENFORCEMENT                                                                                ,Staff Payment,BA0000312395,5.00,
BEIS,The Insolvency Service,13/03/2018,Travel and Subsistence,CRIMINAL ENFORCEMENT                                                                                ,Staff Payment,BA0000312395,10.00,
BEIS,The Insolvency Service,13/03/2018,Travel and Subsistence,CRIMINAL ENFORCEMENT                                                                                ,Staff Payment,BA0000312395,10.80,
BEIS,The Insolvency Service,13/03/2018,Travel and Subsistence,CRIMINAL ENFORCEMENT                                                                                ,Staff Payment,BA0000312395,15.00,
BEIS,The Insolvency Service,13/03/2018,Travel and Subsistence,CRIMINAL ENFORCEMENT                                                                                ,Staff Payment,BA0000312395,27.45,
BEIS,The Insolvency Service,13/03/2018,Travel and Subsistence,CRIMINAL ENFORCEMENT                                                                                ,Staff Payment,BA0000312395,36.90,
BEIS,The Insolvency Service,13/03/2018,Travel and Subsistence,CRIMINAL ENFORCEMENT                                                                                ,Staff Payment,BA0000312395,37.80,
BEIS,The Insolvency Service,13/03/2018,Travel and Subsistence,CRIMINAL ENFORCEMENT                                                                                ,Staff Payment,BA0000312395,62.10,
BEIS,The Insolvency Service,13/03/2018,Travel and Subsistence,CRIMINAL ENFORCEMENT                                                                                ,Staff Payment,BA0000312395,69.30,
BEIS,The Insolvency Service,13/03/2018,Travel and Subsistence,CRIMINAL ENFORCEMENT                                                                                ,Staff Payment,BA0000312395,91.35,
BEIS,The Insolvency Service,13/03/2018,Travel and Subsistence,CRIMINAL ENFORCEMENT                                                                                ,Staff Payment,BA0000312395,3.00,
BEIS,The Insolvency Service,13/03/2018,Travel and Subsistence,CRIMINAL ENFORCEMENT                                                                                ,Staff Payment,BA0000312395,4.00,
BEIS,The Insolvency Service,13/03/2018,Travel and Subsistence,CRIMINAL ENFORCEMENT                                                                                ,Staff Payment,BA0000312395,5.00,
BEIS,The Insolvency Service,13/03/2018,Travel and Subsistence,CRIMINAL ENFORCEMENT                                                                                ,Staff Payment,BA0000312395,6.75,
BEIS,The Insolvency Service,13/03/2018,Travel and Subsistence,CRIMINAL ENFORCEMENT                                                                                ,Staff Payment,BA0000312395,10.35,
BEIS,The Insolvency Service,13/03/2018,Travel and Subsistence,CRIMINAL ENFORCEMENT                                                                                ,Staff Payment,BA0000312395,48.60,
BEIS,The Insolvency Service,13/03/2018,Travel and Subsistence,CRIMINAL ENFORCEMENT                                                                                ,Staff Payment,BA0000312395,5.00,
BEIS,The Insolvency Service,13/03/2018,Travel and Subsistence,CRIMINAL ENFORCEMENT                                                                                ,Staff Payment,BA0000312395,5.00,
BEIS,The Insolvency Service,13/03/2018,Travel and Subsistence,CRIMINAL ENFORCEMENT                                                                                ,Staff Payment,BA0000312395,8.10,
BEIS,The Insolvency Service,13/03/2018,Travel and Subsistence,CRIMINAL ENFORCEMENT                                                                                ,Staff Payment,BA0000312395,11.99,
BEIS,The Insolvency Service,13/03/2018,Travel and Subsistence,CRIMINAL ENFORCEMENT                                                                                ,Staff Payment,BA0000312395,13.00,
BEIS,The Insolvency Service,13/03/2018,Travel and Subsistence,CRIMINAL ENFORCEMENT                                                                                ,Staff Payment,BA0000312395,14.90,
BEIS,The Insolvency Service,13/03/2018,Travel and Subsistence,CRIMINAL ENFORCEMENT                                                                                ,Staff Payment,BA0000312395,15.00,
BEIS,The Insolvency Service,13/03/2018,Travel and Subsistence,CRIMINAL ENFORCEMENT                                                                                ,Staff Payment,BA0000312395,30.15,
BEIS,The Insolvency Service,13/03/2018,Travel and Subsistence,CRIMINAL ENFORCEMENT                                                                                ,Staff Payment,BA0000312395,53.10,
BEIS,The Insolvency Service,13/03/2018,Travel and Subsistence,CRIMINAL ENFORCEMENT                                                                                ,Staff Payment,BA0000312395,62.10,
BEIS,The Insolvency Service,13/03/2018,Travel and Subsistence,CRIMINAL ENFORCEMENT                                                                                ,Staff Payment,BA0000312395,5.00,
BEIS,The Insolvency Service,13/03/2018,Travel and Subsistence,CRIMINAL ENFORCEMENT                                                                                ,Staff Payment,BA0000312395,11.70,
BEIS,The Insolvency Service,13/03/2018,Travel and Subsistence,CRIMINAL ENFORCEMENT                                                                                ,Staff Payment,BA0000312395,24.75,
BEIS,The Insolvency Service,13/03/2018,Travel and Subsistence,CRIMINAL ENFORCEMENT                                                                                ,Staff Payment,BA0000312395,14.00,
BEIS,The Insolvency Service,13/03/2018,Travel and Subsistence,CRIMINAL ENFORCEMENT                                                                                ,Staff Payment,BA0000312395,27.90,
BEIS,The Insolvency Service,13/03/2018,Travel and Subsistence,CRIMINAL ENFORCEMENT                                                                                ,Staff Payment,BA0000312395,48.60,
BEIS,The Insolvency Service,13/03/2018,Travel and Subsistence,CRIMINAL ENFORCEMENT                                                                                ,Staff Payment,BA0000312395,123.30,
BEIS,The Insolvency Service,13/03/2018,Travel and Subsistence,CRIMINAL ENFORCEMENT                                                                                ,Staff Payment,BA0000312395,3.50,
BEIS,The Insolvency Service,13/03/2018,Travel and Subsistence,CRIMINAL ENFORCEMENT                                                                                ,Staff Payment,BA0000312395,3.80,
BEIS,The Insolvency Service,13/03/2018,Travel and Subsistence,CRIMINAL ENFORCEMENT                                                                                ,Staff Payment,BA0000312395,4.29,
BEIS,The Insolvency Service,13/03/2018,Travel and Subsistence,CRIMINAL ENFORCEMENT                                                                                ,Staff Payment,BA0000312395,10.80,
BEIS,The Insolvency Service,13/03/2018,Travel and Subsistence,CRIMINAL ENFORCEMENT                                                                                ,Staff Payment,BA0000312395,12.15,
BEIS,The Insolvency Service,13/03/2018,Travel and Subsistence,CRIMINAL ENFORCEMENT                                                                                ,Staff Payment,BA0000312395,12.60,
BEIS,The Insolvency Service,13/03/2018,Travel and Subsistence,CRIMINAL ENFORCEMENT                                                                                ,Staff Payment,BA0000312395,13.95,
BEIS,The Insolvency Service,13/03/2018,Travel and Subsistence,CRIMINAL ENFORCEMENT                                                                                ,Staff Payment,BA0000312395,15.30,
BEIS,The Insolvency Service,13/03/2018,Travel and Subsistence,CRIMINAL ENFORCEMENT                                                                                ,Staff Payment,BA0000312395,17.10,
BEIS,The Insolvency Service,13/03/2018,Travel and Subsistence,CRIMINAL ENFORCEMENT                                                                                ,Staff Payment,BA0000312395,36.45,
BEIS,The Insolvency Service,13/03/2018,Travel and Subsistence,ESTATES,Staff Payment,BA0000312378,1.60,
BEIS,The Insolvency Service,13/03/2018,Travel and Subsistence,ESTATES,Staff Payment,BA0000312378,2.40,
BEIS,The Insolvency Service,13/03/2018,Travel and Subsistence,ESTATES,Staff Payment,BA0000312378,5.00,
BEIS,The Insolvency Service,13/03/2018,Travel and Subsistence,ESTATES,Staff Payment,BA0000312378,9.55,
BEIS,The Insolvency Service,13/03/2018,Travel and Subsistence,FINANCE AND COMMERCIAL                                                                              ,Staff Payment,BA0000312395,2.40,
BEIS,The Insolvency Service,13/03/2018,Travel and Subsistence,FINANCE AND COMMERCIAL                                                                              ,Staff Payment,BA0000312395,3.95,
BEIS,The Insolvency Service,13/03/2018,Travel and Subsistence,FINANCE AND COMMERCIAL                                                                              ,Staff Payment,BA0000312395,5.00,
BEIS,The Insolvency Service,13/03/2018,Travel and Subsistence,FINANCE AND COMMERCIAL                                                                              ,Staff Payment,BA0000312395,15.00,
BEIS,The Insolvency Service,13/03/2018,Travel and Subsistence,FINANCE AND COMMERCIAL                                                                              ,Staff Payment,BA0000312395,2.40,
BEIS,The Insolvency Service,13/03/2018,Travel and Subsistence,FINANCE AND COMMERCIAL                                                                              ,Staff Payment,BA0000312395,5.00,
BEIS,The Insolvency Service,13/03/2018,Travel and Subsistence,FINANCE AND COMMERCIAL                                                                              ,Staff Payment,BA0000312395,11.99,
BEIS,The Insolvency Service,13/03/2018,Travel and Subsistence,FINANCE AND COMMERCIAL                                                                              ,Staff Payment,BA0000312395,24.00,
BEIS,The Insolvency Service,13/03/2018,Travel and Subsistence,FINANCE AND COMMERCIAL                                                                              ,Staff Payment,BA0000312395,2.40,
BEIS,The Insolvency Service,13/03/2018,Travel and Subsistence,FINANCE AND COMMERCIAL                                                                              ,Staff Payment,BA0000312395,2.90,
BEIS,The Insolvency Service,13/03/2018,Travel and Subsistence,FINANCE AND COMMERCIAL                                                                              ,Staff Payment,BA0000312395,4.10,
BEIS,The Insolvency Service,13/03/2018,Travel and Subsistence,FINANCE AND COMMERCIAL                                                                              ,Staff Payment,BA0000312395,5.30,
BEIS,The Insolvency Service,13/03/2018,Travel and Subsistence,FINANCE AND COMMERCIAL,Staff Payment,BA0000312395,5.00,
BEIS,The Insolvency Service,13/03/2018,Travel and Subsistence,FINANCE AND COMMERCIAL,Staff Payment,BA0000312395,15.00,
BEIS,The Insolvency Service,13/03/2018,Travel and Subsistence,FINANCE AND COMMERCIAL,Staff Payment,BA0000312395,2.70,
BEIS,The Insolvency Service,13/03/2018,Travel and Subsistence,FINANCE AND COMMERCIAL,Staff Payment,BA0000312395,3.90,
BEIS,The Insolvency Service,13/03/2018,Travel and Subsistence,FINANCE AND COMMERCIAL,Staff Payment,BA0000312395,5.00,
BEIS,The Insolvency Service,13/03/2018,Travel and Subsistence,FINANCE AND COMMERCIAL,Staff Payment,BA0000312395,6.75,
BEIS,The Insolvency Service,13/03/2018,Travel and Subsistence,FINANCE AND COMMERCIAL,Staff Payment,BA0000312378,15.00,
BEIS,The Insolvency Service,13/03/2018,Travel and Subsistence,FINANCE AND COMMERCIAL,Staff Payment,BA0000312378,15.00,
BEIS,The Insolvency Service,13/03/2018,Travel and Subsistence,FINANCE AND COMMERCIAL,Staff Payment,BA0000312378,17.40,
BEIS,The Insolvency Service,13/03/2018,Travel and Subsistence,FINANCE AND COMMERCIAL,Staff Payment,BA0000312378,110.70,
BEIS,The Insolvency Service,13/03/2018,Travel and Subsistence,FINANCE AND COMMERCIAL,Staff Payment,BA0000312378,13.95,
BEIS,The Insolvency Service,13/03/2018,Travel and Subsistence,INVESTIGATIONS & ENFORCEMENT                                                                        ,Staff Payment,BA0000312395,5.00,
BEIS,The Insolvency Service,13/03/2018,Travel and Subsistence,INVESTIGATIONS & ENFORCEMENT                                                                        ,Staff Payment,BA0000312395,14.15,
BEIS,The Insolvency Service,13/03/2018,Travel and Subsistence,INVESTIGATIONS & ENFORCEMENT                                                                        ,Staff Payment,BA0000312395,14.60,
BEIS,The Insolvency Service,13/03/2018,Travel and Subsistence,INVESTIGATIONS & ENFORCEMENT                                                                        ,Staff Payment,BA0000312395,3.40,
BEIS,The Insolvency Service,13/03/2018,Travel and Subsistence,INVESTIGATIONS & ENFORCEMENT                                                                        ,Staff Payment,BA0000312395,3.00,
BEIS,The Insolvency Service,13/03/2018,Travel and Subsistence,INVESTIGATIONS & ENFORCEMENT                                                                        ,Staff Payment,BA0000312395,5.50,
BEIS,The Insolvency Service,13/03/2018,Travel and Subsistence,INVESTIGATIONS & ENFORCEMENT                                                                        ,Staff Payment,BA0000312395,42.50,
BEIS,The Insolvency Service,13/03/2018,Travel and Subsistence,INVESTIGATIONS & ENFORCEMENT                                                                        ,Staff Payment,BA0000312378,2.00,
BEIS,The Insolvency Service,13/03/2018,Travel and Subsistence,INVESTIGATIONS & ENFORCEMENT                                                                        ,Staff Payment,BA0000312378,5.00,
BEIS,The Insolvency Service,13/03/2018,Travel and Subsistence,INVESTIGATIONS & ENFORCEMENT                                                                        ,Staff Payment,BA0000312378,15.00,
BEIS,The Insolvency Service,13/03/2018,Travel and Subsistence,INVESTIGATIONS & ENFORCEMENT                                                                        ,Staff Payment,BA0000312378,5.00,
BEIS,The Insolvency Service,13/03/2018,Travel and Subsistence,OFFICIAL RECEIVER SERVICES                                                                          ,Staff Payment,BA0000312378,2.40,
BEIS,The Insolvency Service,13/03/2018,Travel and Subsistence,OFFICIAL RECEIVER SERVICES                                                                          ,Staff Payment,BA0000312378,5.00,
BEIS,The Insolvency Service,13/03/2018,Travel and Subsistence,OFFICIAL RECEIVER SERVICES                                                                          ,Staff Payment,BA0000312378,15.00,
BEIS,The Insolvency Service,13/03/2018,Travel and Subsistence,OFFICIAL RECEIVER SERVICES                                                                          ,Staff Payment,BA0000312378,4.40,
BEIS,The Insolvency Service,13/03/2018,Travel and Subsistence,OFFICIAL RECEIVER SERVICES                                                                          ,Staff Payment,BA0000312378,3.39,
BEIS,The Insolvency Service,13/03/2018,Travel and Subsistence,OFFICIAL RECEIVER SERVICES                                                                          ,Staff Payment,BA0000312378,6.00,
BEIS,The Insolvency Service,13/03/2018,Travel and Subsistence,OFFICIAL RECEIVER SERVICES                                                                          ,Staff Payment,BA0000312378,6.00,
BEIS,The Insolvency Service,13/03/2018,Travel and Subsistence,OFFICIAL RECEIVER SERVICES                                                                          ,Staff Payment,BA0000312378,5.00,
BEIS,The Insolvency Service,13/03/2018,Travel and Subsistence,OFFICIAL RECEIVER SERVICES                                                                          ,Staff Payment,BA0000312378,6.00,
BEIS,The Insolvency Service,13/03/2018,Travel and Subsistence,OFFICIAL RECEIVER SERVICES                                                                          ,Staff Payment,BA0000312378,3.39,
BEIS,The Insolvency Service,13/03/2018,Travel and Subsistence,OFFICIAL RECEIVER SERVICES                                                                          ,Staff Payment,BA0000312378,6.00,
BEIS,The Insolvency Service,13/03/2018,Travel and Subsistence,OFFICIAL RECEIVER SERVICES                                                                          ,Staff Payment,BA0000312378,5.00,
BEIS,The Insolvency Service,13/03/2018,Travel and Subsistence,OFFICIAL RECEIVER SERVICES                                                                          ,Staff Payment,BA0000312378,3.39,
BEIS,The Insolvency Service,13/03/2018,Travel and Subsistence,OFFICIAL RECEIVER SERVICES                                                                          ,Staff Payment,BA0000312378,6.00,
BEIS,The Insolvency Service,13/03/2018,Travel and Subsistence,OFFICIAL RECEIVER SERVICES                                                                          ,Staff Payment,BA0000312395,12.60,
BEIS,The Insolvency Service,13/03/2018,Travel and Subsistence,OFFICIAL RECEIVER SERVICES                                                                          ,Staff Payment,BA0000312395,1.49,
BEIS,The Insolvency Service,13/03/2018,Travel and Subsistence,OFFICIAL RECEIVER SERVICES                                                                          ,Staff Payment,BA0000312395,4.35,
BEIS,The Insolvency Service,13/03/2018,Travel and Subsistence,OFFICIAL RECEIVER SERVICES                                                                          ,Staff Payment,BA0000312395,8.00,
BEIS,The Insolvency Service,13/03/2018,Travel and Subsistence,OFFICIAL RECEIVER SERVICES                                                                          ,Staff Payment,BA0000312395,4.60,
BEIS,The Insolvency Service,13/03/2018,Travel and Subsistence,OFFICIAL RECEIVER SERVICES                                                                          ,Staff Payment,BA0000312395,5.00,
BEIS,The Insolvency Service,13/03/2018,Travel and Subsistence,OFFICIAL RECEIVER SERVICES                                                                          ,Staff Payment,BA0000312395,5.00,
BEIS,The Insolvency Service,13/03/2018,Travel and Subsistence,OFFICIAL RECEIVER SERVICES                                                                          ,Staff Payment,BA0000312395,5.50,
BEIS,The Insolvency Service,13/03/2018,Travel and Subsistence,OFFICIAL RECEIVER SERVICES                                                                          ,Staff Payment,BA0000312395,3.00,
BEIS,The Insolvency Service,13/03/2018,Travel and Subsistence,OFFICIAL RECEIVER SERVICES                                                                          ,Staff Payment,BA0000312395,3.60,
BEIS,The Insolvency Service,13/03/2018,Travel and Subsistence,OFFICIAL RECEIVER SERVICES                                                                          ,Staff Payment,BA0000312395,24.30,
BEIS,The Insolvency Service,13/03/2018,Travel and Subsistence,OFFICIAL RECEIVER SERVICES                                                                          ,Staff Payment,BA0000312378,3.40,
BEIS,The Insolvency Service,13/03/2018,Travel and Subsistence,OFFICIAL RECEIVER SERVICES                                                                          ,Staff Payment,BA0000312378,4.39,
BEIS,The Insolvency Service,13/03/2018,Travel and Subsistence,OFFICIAL RECEIVER SERVICES                                                                          ,Staff Payment,BA0000312378,4.70,
BEIS,The Insolvency Service,13/03/2018,Travel and Subsistence,OFFICIAL RECEIVER SERVICES                                                                          ,Staff Payment,BA0000312378,47.70,
BEIS,The Insolvency Service,13/03/2018,Travel and Subsistence,OFFICIAL RECEIVER SERVICES                                                                          ,Staff Payment,BA0000312395,4.38,
BEIS,The Insolvency Service,13/03/2018,Travel and Subsistence,OFFICIAL RECEIVER SERVICES                                                                          ,Staff Payment,BA0000312395,4.89,
BEIS,The Insolvency Service,13/03/2018,Travel and Subsistence,OFFICIAL RECEIVER SERVICES                                                                          ,Staff Payment,BA0000312395,3.00,
BEIS,The Insolvency Service,13/03/2018,Travel and Subsistence,OFFICIAL RECEIVER SERVICES                                                                          ,Staff Payment,BA0000312395,3.40,
BEIS,The Insolvency Service,13/03/2018,Travel and Subsistence,OFFICIAL RECEIVER SERVICES                                                                          ,Staff Payment,BA0000312395,4.70,
BEIS,The Insolvency Service,13/03/2018,Travel and Subsistence,OFFICIAL RECEIVER SERVICES                                                                          ,Staff Payment,BA0000312395,47.70,
BEIS,The Insolvency Service,13/03/2018,Travel and Subsistence,OFFICIAL RECEIVER SERVICES                                                                          ,Staff Payment,BA0000312395,3.10,
BEIS,The Insolvency Service,13/03/2018,Travel and Subsistence,OFFICIAL RECEIVER SERVICES                                                                          ,Staff Payment,BA0000312395,5.00,
BEIS,The Insolvency Service,13/03/2018,Travel and Subsistence,OFFICIAL RECEIVER SERVICES                                                                          ,Staff Payment,BA0000312395,6.30,
BEIS,The Insolvency Service,13/03/2018,Travel and Subsistence,OFFICIAL RECEIVER SERVICES                                                                          ,Staff Payment,BA0000312395,36.30,
BEIS,The Insolvency Service,13/03/2018,Travel and Subsistence,OFFICIAL RECEIVER SERVICES                                                                          ,Staff Payment,BA0000312395,3.35,
BEIS,The Insolvency Service,13/03/2018,Travel and Subsistence,OFFICIAL RECEIVER SERVICES                                                                          ,Staff Payment,BA0000312395,3.65,
BEIS,The Insolvency Service,13/03/2018,Travel and Subsistence,OFFICIAL RECEIVER SERVICES                                                                          ,Staff Payment,BA0000312395,5.00,
BEIS,The Insolvency Service,13/03/2018,Travel and Subsistence,OFFICIAL RECEIVER SERVICES                                                                          ,Staff Payment,BA0000312395,10.05,
BEIS,The Insolvency Service,13/03/2018,Travel and Subsistence,OFFICIAL RECEIVER SERVICES                                                                          ,Staff Payment,BA0000312395,24.00,
BEIS,The Insolvency Service,13/03/2018,Travel and Subsistence,OFFICIAL RECEIVER SERVICES                                                                          ,Staff Payment,BA0000312395,5.00,
BEIS,The Insolvency Service,13/03/2018,Travel and Subsistence,OFFICIAL RECEIVER SERVICES                                                                          ,Staff Payment,BA0000312395,15.00,
BEIS,The Insolvency Service,13/03/2018,Travel and Subsistence,OFFICIAL RECEIVER SERVICES                                                                          ,Staff Payment,BA0000312395,2.60,
BEIS,The Insolvency Service,13/03/2018,Travel and Subsistence,OFFICIAL RECEIVER SERVICES                                                                          ,Staff Payment,BA0000312395,47.25,
BEIS,The Insolvency Service,13/03/2018,Travel and Subsistence,OFFICIAL RECEIVER SERVICES                                                                          ,Staff Payment,BA0000312395,9.90,
BEIS,The Insolvency Service,13/03/2018,Travel and Subsistence,OFFICIAL RECEIVER SERVICES                                                                          ,Staff Payment,BA0000312395,11.50,
BEIS,The Insolvency Service,13/03/2018,Travel and Subsistence,OFFICIAL RECEIVER SERVICES                                                                          ,Staff Payment,BA0000312378,2.00,
BEIS,The Insolvency Service,13/03/2018,Travel and Subsistence,OFFICIAL RECEIVER SERVICES                                                                          ,Staff Payment,BA0000312378,10.00,
BEIS,The Insolvency Service,13/03/2018,Travel and Subsistence,OFFICIAL RECEIVER SERVICES                                                                          ,Staff Payment,BA0000312378,36.45,
BEIS,The Insolvency Service,13/03/2018,Travel and Subsistence,OFFICIAL RECEIVER SERVICES                                                                          ,Staff Payment,BA0000312378,1.50,
BEIS,The Insolvency Service,13/03/2018,Travel and Subsistence,OFFICIAL RECEIVER SERVICES                                                                          ,Staff Payment,BA0000312378,3.00,
BEIS,The Insolvency Service,13/03/2018,Travel and Subsistence,OFFICIAL RECEIVER SERVICES                                                                          ,Staff Payment,BA0000312378,4.00,
BEIS,The Insolvency Service,13/03/2018,Travel and Subsistence,OFFICIAL RECEIVER SERVICES                                                                          ,Staff Payment,BA0000312378,4.50,
BEIS,The Insolvency Service,13/03/2018,Travel and Subsistence,OFFICIAL RECEIVER SERVICES                                                                          ,Staff Payment,BA0000312378,37.50,
BEIS,The Insolvency Service,13/03/2018,Travel and Subsistence,OFFICIAL RECEIVER SERVICES                                                                          ,Staff Payment,BA0000312378,3.60,
BEIS,The Insolvency Service,13/03/2018,Travel and Subsistence,OFFICIAL RECEIVER SERVICES                                                                          ,Staff Payment,BA0000312378,5.00,
BEIS,The Insolvency Service,13/03/2018,Travel and Subsistence,OFFICIAL RECEIVER SERVICES                                                                          ,Staff Payment,BA0000312378,15.00,
BEIS,The Insolvency Service,13/03/2018,Travel and Subsistence,OFFICIAL RECEIVER SERVICES                                                                          ,Staff Payment,BA0000312378,3.50,
BEIS,The Insolvency Service,13/03/2018,Travel and Subsistence,OFFICIAL RECEIVER SERVICES                                                                          ,Staff Payment,BA0000312378,6.80,
BEIS,The Insolvency Service,13/03/2018,Travel and Subsistence,OFFICIAL RECEIVER SERVICES                                                                          ,Staff Payment,BA0000312378,5.00,
BEIS,The Insolvency Service,13/03/2018,Travel and Subsistence,OFFICIAL RECEIVER SERVICES                                                                          ,Staff Payment,BA0000312378,16.00,
BEIS,The Insolvency Service,13/03/2018,Travel and Subsistence,OFFICIAL RECEIVER SERVICES                                                                          ,Staff Payment,BA0000312378,2.40,
BEIS,The Insolvency Service,13/03/2018,Travel and Subsistence,OFFICIAL RECEIVER SERVICES                                                                          ,Staff Payment,BA0000312378,5.00,
BEIS,The Insolvency Service,13/03/2018,Travel and Subsistence,OFFICIAL RECEIVER SERVICES                                                                          ,Staff Payment,BA0000312378,8.00,
BEIS,The Insolvency Service,13/03/2018,Travel and Subsistence,OFFICIAL RECEIVER SERVICES                                                                          ,Staff Payment,BA0000312378,15.00,
BEIS,The Insolvency Service,13/03/2018,Travel and Subsistence,OFFICIAL RECEIVER SERVICES                                                                          ,Staff Payment,BA0000312378,17.00,
BEIS,The Insolvency Service,13/03/2018,Travel and Subsistence,OFFICIAL RECEIVER SERVICES                                                                          ,Staff Payment,BA0000312378,4.00,
BEIS,The Insolvency Service,13/03/2018,Travel and Subsistence,OFFICIAL RECEIVER SERVICES                                                                          ,Staff Payment,BA0000312378,5.00,
BEIS,The Insolvency Service,13/03/2018,Travel and Subsistence,OFFICIAL RECEIVER SERVICES                                                                          ,Staff Payment,BA0000312378,12.50,
BEIS,The Insolvency Service,13/03/2018,Travel and Subsistence,OFFICIAL RECEIVER SERVICES                                                                          ,Staff Payment,BA0000312378,5.00,
BEIS,The Insolvency Service,13/03/2018,Travel and Subsistence,OFFICIAL RECEIVER SERVICES                                                                          ,Staff Payment,BA0000312378,1.40,
BEIS,The Insolvency Service,13/03/2018,Travel and Subsistence,OFFICIAL RECEIVER SERVICES                                                                          ,Staff Payment,BA0000312378,4.95,
BEIS,The Insolvency Service,13/03/2018,Travel and Subsistence,OFFICIAL RECEIVER SERVICES                                                                          ,Staff Payment,BA0000312378,5.00,
BEIS,The Insolvency Service,13/03/2018,Travel and Subsistence,OFFICIAL RECEIVER SERVICES                                                                          ,Staff Payment,BA0000312378,14.80,
BEIS,The Insolvency Service,13/03/2018,Travel and Subsistence,OFFICIAL RECEIVER SERVICES                                                                          ,Staff Payment,BA0000312378,3.00,
BEIS,The Insolvency Service,13/03/2018,Travel and Subsistence,OFFICIAL RECEIVER SERVICES                                                                          ,Staff Payment,BA0000312378,7.65,
BEIS,The Insolvency Service,13/03/2018,Travel and Subsistence,OFFICIAL RECEIVER SERVICES                                                                          ,Staff Payment,BA0000312378,29.70,
BEIS,The Insolvency Service,13/03/2018,Travel and Subsistence,OFFICIAL RECEIVER SERVICES                                                                          ,Staff Payment,BA0000312378,3.39,
BEIS,The Insolvency Service,13/03/2018,Travel and Subsistence,OFFICIAL RECEIVER SERVICES                                                                          ,Staff Payment,BA0000312378,6.00,
BEIS,The Insolvency Service,13/03/2018,Travel and Subsistence,P&C - People Relations                                                                              ,Staff Payment,BA0000312378,9.00,
BEIS,The Insolvency Service,13/03/2018,Travel and Subsistence,P&C - People Relations                                                                              ,Staff Payment,BA0000312378,6.00,
